Department Family,Entity,Payment Date,Expense Type,Expense Area,Supplier Name,Transactions Number, Amount (£)
Foreign & Commonwealth Office,Foreign & Commonwealth Office,01-Sep-10,Nursery Childcare Subsidy,DG CHANGE & DELIVERY,BRIGHT HORIZONS FAMILY SOLUTION LTD,1171395,"39,499.00"
Foreign & Commonwealth Office,Foreign & Commonwealth Office,01-Sep-10,Inward Visits/Uk Conferences,DG CHANGE & DELIVERY,MANTAPLAN LTD,2000061,"391,992.93"
Foreign & Commonwealth Office,Foreign & Commonwealth Office,01-Sep-10,VAT (Input) (Oracle Sub-Ledger Control Account),NON CASH & UNALLOCATED COSTS,MANTAPLAN LTD,2000061,"68,598.76"
Foreign & Commonwealth Office,Foreign & Commonwealth Office,01-Sep-10,Inward Visits/Uk Conferences,DG CHANGE & DELIVERY,MANTAPLAN LTD,2000061,"-391,992.93"
Foreign & Commonwealth Office,Foreign & Commonwealth Office,01-Sep-10,VAT (Input) (Oracle Sub-Ledger Control Account),NON CASH & UNALLOCATED COSTS,MANTAPLAN LTD,2000061,"-68,598.76"
Foreign & Commonwealth Office,Foreign & Commonwealth Office,01-Sep-10,Inward Visits/Uk Conferences,DG CHANGE & DELIVERY,MANTAPLAN LTD,2000061,"333,611.00"
Foreign & Commonwealth Office,Foreign & Commonwealth Office,01-Sep-10,VAT (Input) (Oracle Sub-Ledger Control Account),NON CASH & UNALLOCATED COSTS,MANTAPLAN LTD,2000061,"58,381.93"
Foreign & Commonwealth Office,Foreign & Commonwealth Office,01-Sep-10,Recharge Suspense Account (Oracle PA Control Account),NON CASH & UNALLOCATED COSTS,COB EMPLOYEE EXPENSES,3007410,"284,053.60"
Foreign & Commonwealth Office,Foreign & Commonwealth Office,02-Sep-10,IT/IS Consultancy,DG FINANCE,BUSINESS OBJECTS(UK)LTD -SAP UK LIMITED,1171463,"9,400.00"
Foreign & Commonwealth Office,Foreign & Commonwealth Office,02-Sep-10,IT/IS Consultancy,DG FINANCE,BUSINESS OBJECTS(UK)LTD -SAP UK LIMITED,1171463,"12,250.00"
Foreign & Commonwealth Office,Foreign & Commonwealth Office,02-Sep-10,VAT (Input) (Oracle Sub-Ledger Control Account),NON CASH & UNALLOCATED COSTS,BUSINESS OBJECTS(UK)LTD -SAP UK LIMITED,1171463,"3,788.75"
Foreign & Commonwealth Office,Foreign & Commonwealth Office,02-Sep-10,Property and Construction Consultancy,DG CHANGE & DELIVERY,COLLIERS,1171470,"49,250.00"
Foreign & Commonwealth Office,Foreign & Commonwealth Office,03-Sep-10,Programme Spend (Oracle Projects Control Account),DG EUROPE AND GLOBALISATION,DTZ DEBENHAM TIE LEUNG,1171567,"25,446.84"
Foreign & Commonwealth Office,Foreign & Commonwealth Office,03-Sep-10,Programme Spend (Oracle Projects Control Account),DG EUROPE AND GLOBALISATION,ELECTORAL REFORM INTERNATIONAL SERVICES LTD,1171568,"25,225.85"
Foreign & Commonwealth Office,Foreign & Commonwealth Office,06-Sep-10,Recharge Suspense Account (Oracle PA Control Account),NON CASH & UNALLOCATED COSTS,TJD OTHER DEBTORS,100000374,"26,535.86"
Foreign & Commonwealth Office,Foreign & Commonwealth Office,07-Sep-10,Recharge Suspense Account (Oracle PA Control Account),NON CASH & UNALLOCATED COSTS,INTERNATIONAL CAPITAL TRADING,925150,"33,166.18"
Foreign & Commonwealth Office,Foreign & Commonwealth Office,07-Sep-10,Programme Spend (Oracle Projects Control Account),DG POLITICAL,UNITED NATIONS,1002595,"1,191,890.79"
Foreign & Commonwealth Office,Foreign & Commonwealth Office,07-Sep-10,Programme Spend (Oracle Projects Control Account),DG POLITICAL,UNITED NATIONS,1002596,"1,440,241.68"
Foreign & Commonwealth Office,Foreign & Commonwealth Office,07-Sep-10,Programme Spend (Oracle Projects Control Account),DG POLITICAL,UNITED NATIONS,1002597,"730,149.92"
Foreign & Commonwealth Office,Foreign & Commonwealth Office,07-Sep-10,Programme Spend (Oracle Projects Control Account),DG POLITICAL,UNITED NATIONS,1002598,"12,853,675.61"
Foreign & Commonwealth Office,Foreign & Commonwealth Office,07-Sep-10,Programme Spend (Oracle Projects Control Account),DG POLITICAL,UNITED NATIONS,1002599,"5,923,510.18"
Foreign & Commonwealth Office,Foreign & Commonwealth Office,07-Sep-10,Programme Spend (Oracle Projects Control Account),DG POLITICAL,UNITED NATIONS,1002600,"11,290,598.38"
Foreign & Commonwealth Office,Foreign & Commonwealth Office,07-Sep-10,Programme Spend (Oracle Projects Control Account),DG POLITICAL,UNITED NATIONS,1002601,"11,171,476.57"
Foreign & Commonwealth Office,Foreign & Commonwealth Office,07-Sep-10,Programme Spend (Oracle Projects Control Account),DG POLITICAL,UNITED NATIONS,1002602,"4,772,096.93"
Foreign & Commonwealth Office,Foreign & Commonwealth Office,07-Sep-10,Programme Spend (Oracle Projects Control Account),DG POLITICAL,UNITED NATIONS,1002603,"22,848,414.22"
Foreign & Commonwealth Office,Foreign & Commonwealth Office,07-Sep-10,Programme Spend (Oracle Projects Control Account),DG POLITICAL,UNITED NATIONS,1002604,"5,062,507.27"
Foreign & Commonwealth Office,Foreign & Commonwealth Office,07-Sep-10,Programme Spend (Oracle Projects Control Account),DG EUROPE AND GLOBALISATION,UNITED NATIONS,1002605,"59,162.52"
Foreign & Commonwealth Office,Foreign & Commonwealth Office,07-Sep-10,Programme Spend (Oracle Projects Control Account),DG EUROPE AND GLOBALISATION,UNITED NATIONS,1002605,"26,251.37"
Foreign & Commonwealth Office,Foreign & Commonwealth Office,07-Sep-10,Contract Fees,DG EUROPE AND GLOBALISATION,MORSON HUMAN RESOURCES LTD,1171741,"35,660.83"
Foreign & Commonwealth Office,Foreign & Commonwealth Office,07-Sep-10,Property Maintenance Overseas Non Residential,DG EUROPE AND GLOBALISATION,MORSON HUMAN RESOURCES LTD,1171741,"67,360.22"
Foreign & Commonwealth Office,Foreign & Commonwealth Office,07-Sep-10,Property Maintenance Overseas Non Residential,DG EUROPE AND GLOBALISATION,MORSON HUMAN RESOURCES LTD,1171741,"30,338.07"
Foreign & Commonwealth Office,Foreign & Commonwealth Office,07-Sep-10,Inward Visits/Uk Conferences,DG CHANGE & DELIVERY,FELTECH ELECTRONICS LTD,2000068,"980,000.00"
Foreign & Commonwealth Office,Foreign & Commonwealth Office,07-Sep-10,VAT (Input) (Oracle Sub-Ledger Control Account),NON CASH & UNALLOCATED COSTS,FELTECH ELECTRONICS LTD,2000068,"171,500.00"
Foreign & Commonwealth Office,Foreign & Commonwealth Office,08-Sep-10,Recharge Suspense Account (Oracle PA Control Account),NON CASH & UNALLOCATED COSTS,BRITISH COUNCIL,1008462,"38,177.95"
Foreign & Commonwealth Office,Foreign & Commonwealth Office,08-Sep-10,Programme Spend (Oracle Projects Control Account),DG POLITICAL,ARTICLE 19,1171785,"62,821.54"
Foreign & Commonwealth Office,Foreign & Commonwealth Office,08-Sep-10,Customer Refund Account,NON CASH & UNALLOCATED COSTS,BRITISH COUNCIL,1171791,"36,640.95"
Foreign & Commonwealth Office,Foreign & Commonwealth Office,08-Sep-10,Fco Healthcare Scheme,DG CHANGE & DELIVERY,HEALIX INTERNATIONAL LTD,1171811,"113,130.70"
Foreign & Commonwealth Office,Foreign & Commonwealth Office,08-Sep-10,Fco Healthcare Scheme,DG CHANGE & DELIVERY,HEALIX INTERNATIONAL LTD,1171811,16.82
Foreign & Commonwealth Office,Foreign & Commonwealth Office,08-Sep-10,Fco Healthcare Scheme,DG CHANGE & DELIVERY,HEALIX INTERNATIONAL LTD,1171811,"19,797.87"
Foreign & Commonwealth Office,Foreign & Commonwealth Office,08-Sep-10,Fco Healthcare Scheme,DG CHANGE & DELIVERY,HEALIX INTERNATIONAL LTD,1171811,2.94
Foreign & Commonwealth Office,Foreign & Commonwealth Office,08-Sep-10,Fco Healthcare Scheme,DG CHANGE & DELIVERY,HEALIX INTERNATIONAL LTD,1171811,0.01
Foreign & Commonwealth Office,Foreign & Commonwealth Office,09-Sep-10,Programme Spend (Oracle Projects Control Account),DG POLITICAL,BRITISH INSTITUTE OF INTERNATIONAL & COMPARATIVE LAW,1171876,"78,111.00"
Foreign & Commonwealth Office,Foreign & Commonwealth Office,09-Sep-10,Rent and Condominium Charges Non-Residential,DG CHANGE & DELIVERY,UNIVERSAL CEMENT CONSTRUCTION,10003975,"42,101.37"
Foreign & Commonwealth Office,Foreign & Commonwealth Office,10-Sep-10,Programme Spend (Oracle Projects Control Account),DG POLITICAL,COFFEY INTERNATIONAL DEVELOPMENT,1172008,"79,370.13"
Foreign & Commonwealth Office,Foreign & Commonwealth Office,10-Sep-10,IT/IS Consultancy,DG CENTRAL GROUP,LA INTERNATIONAL COMPUTER CONSULTANTS LTD,1172030,"9,610.88"
Foreign & Commonwealth Office,Foreign & Commonwealth Office,10-Sep-10,IT/IS Consultancy,DG CENTRAL GROUP,LA INTERNATIONAL COMPUTER CONSULTANTS LTD,1172030,"13,070.79"
Foreign & Commonwealth Office,Foreign & Commonwealth Office,10-Sep-10,VAT (Input) (Oracle Sub-Ledger Control Account),NON CASH & UNALLOCATED COSTS,LA INTERNATIONAL COMPUTER CONSULTANTS LTD,1172030,"3,969.29"
Foreign & Commonwealth Office,Foreign & Commonwealth Office,10-Sep-10,Inward Visits/Uk Conferences,DG CHANGE & DELIVERY,MANTAPLAN LTD,1172034,"333,611.00"
Foreign & Commonwealth Office,Foreign & Commonwealth Office,10-Sep-10,VAT (Input) (Oracle Sub-Ledger Control Account),NON CASH & UNALLOCATED COSTS,MANTAPLAN LTD,1172034,"58,381.93"
Foreign & Commonwealth Office,Foreign & Commonwealth Office,13-Sep-10,IT/IS Consultancy,DG CENTRAL GROUP,CAPGEMINI  UK PLC,1172070,"69,030.74"
Foreign & Commonwealth Office,Foreign & Commonwealth Office,13-Sep-10,VAT (Input) (Oracle Sub-Ledger Control Account),NON CASH & UNALLOCATED COSTS,CAPGEMINI  UK PLC,1172070,"12,080.38"
Foreign & Commonwealth Office,Foreign & Commonwealth Office,13-Sep-10,Programme Spend (Oracle Projects Control Account),DG CENTRAL GROUP,MARSHALL AID COMMERATION COMMISSION,1172102,"900,000.00"
Foreign & Commonwealth Office,Foreign & Commonwealth Office,13-Sep-10,Programme Spend (Oracle Projects Control Account),DG CENTRAL GROUP,MARSHALL AID COMMERATION COMMISSION,1172102,"157,500.00"
Foreign & Commonwealth Office,Foreign & Commonwealth Office,13-Sep-10,Programme Spend (Oracle Projects Control Account),DG CENTRAL GROUP,MARSHALL AID COMMERATION COMMISSION,1172102,"-900,000.00"
Foreign & Commonwealth Office,Foreign & Commonwealth Office,13-Sep-10,Programme Spend (Oracle Projects Control Account),DG CENTRAL GROUP,MARSHALL AID COMMERATION COMMISSION,1172102,"-157,500.00"
Foreign & Commonwealth Office,Foreign & Commonwealth Office,13-Sep-10,Programme Spend (Oracle Projects Control Account),DG CENTRAL GROUP,MARSHALL AID COMMERATION COMMISSION,1172102,"900,000.00"
Foreign & Commonwealth Office,Foreign & Commonwealth Office,13-Sep-10,Programme Spend (Oracle Projects Control Account),DG DEFENCE AND INTELLIGENCE,MRAG LTD,1172107,"34,673.75"
Foreign & Commonwealth Office,Foreign & Commonwealth Office,13-Sep-10,VAT (Input) (Oracle Sub-Ledger Control Account),NON CASH & UNALLOCATED COSTS,MRAG LTD,1172107,"6,067.91"
Foreign & Commonwealth Office,Foreign & Commonwealth Office,14-Sep-10,FM Interserve Works,DG CHANGE & DELIVERY,INTERSERVE FM LTD,1172158,"30,615.16"
Foreign & Commonwealth Office,Foreign & Commonwealth Office,14-Sep-10,FM Interserve Works,DG CHANGE & DELIVERY,INTERSERVE FM LTD,1172158,962.4
Foreign & Commonwealth Office,Foreign & Commonwealth Office,14-Sep-10,FM Interserve Works,DG CHANGE & DELIVERY,INTERSERVE FM LTD,1172158,"4,592.27"
Foreign & Commonwealth Office,Foreign & Commonwealth Office,14-Sep-10,FM Interserve Works,DG CHANGE & DELIVERY,INTERSERVE FM LTD,1172158,144.36
Foreign & Commonwealth Office,Foreign & Commonwealth Office,14-Sep-10,Inward Visits/Uk Conferences,DG CHANGE & DELIVERY,FELTECH ELECTRONICS LTD,2000078,"1,280,000.00"
Foreign & Commonwealth Office,Foreign & Commonwealth Office,14-Sep-10,VAT (Input) (Oracle Sub-Ledger Control Account),NON CASH & UNALLOCATED COSTS,FELTECH ELECTRONICS LTD,2000078,"224,000.00"
Foreign & Commonwealth Office,Foreign & Commonwealth Office,14-Sep-10,Recharge Suspense Account (Oracle PA Control Account),NON CASH & UNALLOCATED COSTS,BRITISH COUNCIL,2004914,"29,103.16"
Foreign & Commonwealth Office,Foreign & Commonwealth Office,15-Sep-10,Maintenance M and E,DG CHANGE & DELIVERY,INTERSERVE FM LTD,9664,"2,925.23"
Foreign & Commonwealth Office,Foreign & Commonwealth Office,15-Sep-10,Minor New Works <10K,DG CHANGE & DELIVERY,INTERSERVE FM LTD,9664,579.36
Foreign & Commonwealth Office,Foreign & Commonwealth Office,15-Sep-10,Grounds Mainteance,DG CHANGE & DELIVERY,INTERSERVE FM LTD,9664,419.72
Foreign & Commonwealth Office,Foreign & Commonwealth Office,15-Sep-10,Cleaning,DG CHANGE & DELIVERY,INTERSERVE FM LTD,9664,"3,389.48"
Foreign & Commonwealth Office,Foreign & Commonwealth Office,15-Sep-10,Cleaning,DG CHANGE & DELIVERY,INTERSERVE FM LTD,9664,287.48
Foreign & Commonwealth Office,Foreign & Commonwealth Office,15-Sep-10,Miscellaneous Expenditure,DG CHANGE & DELIVERY,INTERSERVE FM LTD,9664,57.36
Foreign & Commonwealth Office,Foreign & Commonwealth Office,15-Sep-10,Waste Disposal,DG CHANGE & DELIVERY,INTERSERVE FM LTD,9664,290.48
Foreign & Commonwealth Office,Foreign & Commonwealth Office,15-Sep-10,Reception Services,DG CHANGE & DELIVERY,INTERSERVE FM LTD,9664,"5,824.14"
Foreign & Commonwealth Office,Foreign & Commonwealth Office,15-Sep-10,Contract Porterage,DG CHANGE & DELIVERY,INTERSERVE FM LTD,9664,"4,156.75"
Foreign & Commonwealth Office,Foreign & Commonwealth Office,15-Sep-10,Stationery - General,DG CHANGE & DELIVERY,INTERSERVE FM LTD,9664,"1,456.04"
Foreign & Commonwealth Office,Foreign & Commonwealth Office,15-Sep-10,Property and Construction Consultancy,DG CHANGE & DELIVERY,INTERSERVE FM LTD,9664,871.39
Foreign & Commonwealth Office,Foreign & Commonwealth Office,15-Sep-10,Rematching / Reinstatement,DG CHANGE & DELIVERY,INTERSERVE FM LTD,9664,616.14
Foreign & Commonwealth Office,Foreign & Commonwealth Office,15-Sep-10,Contract Fees,DG CHANGE & DELIVERY,INTERSERVE FM LTD,9664,"4,505.97"
Foreign & Commonwealth Office,Foreign & Commonwealth Office,15-Sep-10,Maintenance M and E,DG CHANGE & DELIVERY,INTERSERVE FM LTD,9665,"2,317.54"
Foreign & Commonwealth Office,Foreign & Commonwealth Office,15-Sep-10,Maintenance B and Ce,DG CHANGE & DELIVERY,INTERSERVE FM LTD,9665,238.31
Foreign & Commonwealth Office,Foreign & Commonwealth Office,15-Sep-10,Minor New Works <10K,DG CHANGE & DELIVERY,INTERSERVE FM LTD,9665,833.05
Foreign & Commonwealth Office,Foreign & Commonwealth Office,15-Sep-10,Grounds Mainteance,DG CHANGE & DELIVERY,INTERSERVE FM LTD,9665,213.41
Foreign & Commonwealth Office,Foreign & Commonwealth Office,15-Sep-10,Cleaning,DG CHANGE & DELIVERY,INTERSERVE FM LTD,9665,"9,380.51"
Foreign & Commonwealth Office,Foreign & Commonwealth Office,15-Sep-10,Cleaning,DG CHANGE & DELIVERY,INTERSERVE FM LTD,9665,384.44
Foreign & Commonwealth Office,Foreign & Commonwealth Office,15-Sep-10,Miscellaneous Expenditure,DG CHANGE & DELIVERY,INTERSERVE FM LTD,9665,105.94
Foreign & Commonwealth Office,Foreign & Commonwealth Office,15-Sep-10,Waste Disposal,DG CHANGE & DELIVERY,INTERSERVE FM LTD,9665,479.29
Foreign & Commonwealth Office,Foreign & Commonwealth Office,15-Sep-10,Reception Services,DG CHANGE & DELIVERY,INTERSERVE FM LTD,9665,"6,372.36"
Foreign & Commonwealth Office,Foreign & Commonwealth Office,15-Sep-10,Contract Porterage,DG CHANGE & DELIVERY,INTERSERVE FM LTD,9665,"4,993.12"
Foreign & Commonwealth Office,Foreign & Commonwealth Office,15-Sep-10,Stationery - General,DG CHANGE & DELIVERY,INTERSERVE FM LTD,9665,"1,593.09"
Foreign & Commonwealth Office,Foreign & Commonwealth Office,15-Sep-10,Corporate Strategy Consultancy,DG CHANGE & DELIVERY,INTERSERVE FM LTD,9665,137.99
Foreign & Commonwealth Office,Foreign & Commonwealth Office,15-Sep-10,Property and Construction Consultancy,DG CHANGE & DELIVERY,INTERSERVE FM LTD,9665,"10,751.05"
Foreign & Commonwealth Office,Foreign & Commonwealth Office,15-Sep-10,Rematching / Reinstatement,DG CHANGE & DELIVERY,INTERSERVE FM LTD,9665,162.93
Foreign & Commonwealth Office,Foreign & Commonwealth Office,15-Sep-10,Contract Fees,DG CHANGE & DELIVERY,INTERSERVE FM LTD,9665,"5,623.72"
Foreign & Commonwealth Office,Foreign & Commonwealth Office,15-Sep-10,Maintenance M and E,DG CHANGE & DELIVERY,INTERSERVE FM LTD,9672,"4,146.02"
Foreign & Commonwealth Office,Foreign & Commonwealth Office,15-Sep-10,Maintenance M and E,DG CHANGE & DELIVERY,INTERSERVE FM LTD,9672,140.54
Foreign & Commonwealth Office,Foreign & Commonwealth Office,15-Sep-10,Maintenance M and E,DG CHANGE & DELIVERY,INTERSERVE FM LTD,9672,"1,284.88"
Foreign & Commonwealth Office,Foreign & Commonwealth Office,15-Sep-10,Maintenance M and E,DG CHANGE & DELIVERY,INTERSERVE FM LTD,9672,18.65
Foreign & Commonwealth Office,Foreign & Commonwealth Office,15-Sep-10,Maintenance M and E,DG CHANGE & DELIVERY,INTERSERVE FM LTD,9672,"4,244.67"
Foreign & Commonwealth Office,Foreign & Commonwealth Office,15-Sep-10,Maintenance M and E,DG CHANGE & DELIVERY,INTERSERVE FM LTD,9672,184.25
Foreign & Commonwealth Office,Foreign & Commonwealth Office,15-Sep-10,Maintenance M and E,DG CHANGE & DELIVERY,INTERSERVE FM LTD,9672,152.19
Foreign & Commonwealth Office,Foreign & Commonwealth Office,15-Sep-10,Maintenance M and E,DG CHANGE & DELIVERY,INTERSERVE FM LTD,9672,143.68
Foreign & Commonwealth Office,Foreign & Commonwealth Office,15-Sep-10,Maintenance M and E,DG CHANGE & DELIVERY,INTERSERVE FM LTD,9672,"1,850.64"
Foreign & Commonwealth Office,Foreign & Commonwealth Office,15-Sep-10,Maintenance M and E,DG CHANGE & DELIVERY,INTERSERVE FM LTD,9672,"2,384.81"
Foreign & Commonwealth Office,Foreign & Commonwealth Office,15-Sep-10,Maintenance M and E,DG CHANGE & DELIVERY,INTERSERVE FM LTD,9672,462.66
Foreign & Commonwealth Office,Foreign & Commonwealth Office,15-Sep-10,Maintenance M and E,DG CHANGE & DELIVERY,INTERSERVE FM LTD,9672,319.04
Foreign & Commonwealth Office,Foreign & Commonwealth Office,15-Sep-10,Maintenance M and E,DG CHANGE & DELIVERY,INTERSERVE FM LTD,9672,"4,290.29"
Foreign & Commonwealth Office,Foreign & Commonwealth Office,15-Sep-10,Maintenance M and E,DG CHANGE & DELIVERY,INTERSERVE FM LTD,9672,"4,853.59"
Foreign & Commonwealth Office,Foreign & Commonwealth Office,15-Sep-10,Maintenance M and E,DG CHANGE & DELIVERY,INTERSERVE FM LTD,9672,181.95
Foreign & Commonwealth Office,Foreign & Commonwealth Office,15-Sep-10,FM Interserve Overseas Reclaimable Tax,DG CHANGE & DELIVERY,INTERSERVE FM LTD,9672,"5,424.73"
Foreign & Commonwealth Office,Foreign & Commonwealth Office,15-Sep-10,FM Interserve Overseas Reclaimable Tax,DG CHANGE & DELIVERY,INTERSERVE FM LTD,9672,0
Foreign & Commonwealth Office,Foreign & Commonwealth Office,15-Sep-10,Programme Spend (Oracle Projects Control Account),DG EUROPE AND GLOBALISATION,BRITISH COUNCIL,807826,"25,022.54"
Foreign & Commonwealth Office,Foreign & Commonwealth Office,15-Sep-10,Maintenance M and E,DG CHANGE & DELIVERY,INTERSERVE FM LTD,1001905,"2,031.99"
Foreign & Commonwealth Office,Foreign & Commonwealth Office,15-Sep-10,Maintenance B and Ce,DG CHANGE & DELIVERY,INTERSERVE FM LTD,1001905,61.44
Foreign & Commonwealth Office,Foreign & Commonwealth Office,15-Sep-10,Minor New Works <10K,DG CHANGE & DELIVERY,INTERSERVE FM LTD,1001905,476.76
Foreign & Commonwealth Office,Foreign & Commonwealth Office,15-Sep-10,Grounds Mainteance,DG CHANGE & DELIVERY,INTERSERVE FM LTD,1001905,110.05
Foreign & Commonwealth Office,Foreign & Commonwealth Office,15-Sep-10,Cleaning,DG CHANGE & DELIVERY,INTERSERVE FM LTD,1001905,"3,126.12"
Foreign & Commonwealth Office,Foreign & Commonwealth Office,15-Sep-10,Cleaning,DG CHANGE & DELIVERY,INTERSERVE FM LTD,1001905,129.61
Foreign & Commonwealth Office,Foreign & Commonwealth Office,15-Sep-10,Miscellaneous Expenditure,DG CHANGE & DELIVERY,INTERSERVE FM LTD,1001905,147.66
Foreign & Commonwealth Office,Foreign & Commonwealth Office,15-Sep-10,Waste Disposal,DG CHANGE & DELIVERY,INTERSERVE FM LTD,1001905,356.31
Foreign & Commonwealth Office,Foreign & Commonwealth Office,15-Sep-10,Reception Services,DG CHANGE & DELIVERY,INTERSERVE FM LTD,1001905,"5,563.91"
Foreign & Commonwealth Office,Foreign & Commonwealth Office,15-Sep-10,Contract Porterage,DG CHANGE & DELIVERY,INTERSERVE FM LTD,1001905,"4,455.92"
Foreign & Commonwealth Office,Foreign & Commonwealth Office,15-Sep-10,Stationery - General,DG CHANGE & DELIVERY,INTERSERVE FM LTD,1001905,"1,390.97"
Foreign & Commonwealth Office,Foreign & Commonwealth Office,15-Sep-10,Corporate Strategy Consultancy,DG CHANGE & DELIVERY,INTERSERVE FM LTD,1001905,78.32
Foreign & Commonwealth Office,Foreign & Commonwealth Office,15-Sep-10,Property and Construction Consultancy,DG CHANGE & DELIVERY,INTERSERVE FM LTD,1001905,396.79
Foreign & Commonwealth Office,Foreign & Commonwealth Office,15-Sep-10,Rematching / Reinstatement,DG CHANGE & DELIVERY,INTERSERVE FM LTD,1001905,441.88
Foreign & Commonwealth Office,Foreign & Commonwealth Office,15-Sep-10,Contract Fees,DG CHANGE & DELIVERY,INTERSERVE FM LTD,1001905,"3,514.88"
Foreign & Commonwealth Office,Foreign & Commonwealth Office,15-Sep-10,FM Interserve Overseas Reclaimable Tax,DG CHANGE & DELIVERY,INTERSERVE FM LTD,1001905,"4,233.69"
Foreign & Commonwealth Office,Foreign & Commonwealth Office,15-Sep-10,FM Interserve Overseas Reclaimable Tax,DG CHANGE & DELIVERY,INTERSERVE FM LTD,1001905,0.01
Foreign & Commonwealth Office,Foreign & Commonwealth Office,15-Sep-10,Maintenance M and E,DG CHANGE & DELIVERY,INTERSERVE FM LTD,1001906,"2,049.66"
Foreign & Commonwealth Office,Foreign & Commonwealth Office,15-Sep-10,Minor New Works <10K,DG CHANGE & DELIVERY,INTERSERVE FM LTD,1001906,465.83
Foreign & Commonwealth Office,Foreign & Commonwealth Office,15-Sep-10,Grounds Mainteance,DG CHANGE & DELIVERY,INTERSERVE FM LTD,1001906,335.91
Foreign & Commonwealth Office,Foreign & Commonwealth Office,15-Sep-10,Cleaning,DG CHANGE & DELIVERY,INTERSERVE FM LTD,1001906,"2,632.28"
Foreign & Commonwealth Office,Foreign & Commonwealth Office,15-Sep-10,Cleaning,DG CHANGE & DELIVERY,INTERSERVE FM LTD,1001906,197.03
Foreign & Commonwealth Office,Foreign & Commonwealth Office,15-Sep-10,Miscellaneous Expenditure,DG CHANGE & DELIVERY,INTERSERVE FM LTD,1001906,411.21
Foreign & Commonwealth Office,Foreign & Commonwealth Office,15-Sep-10,Waste Disposal,DG CHANGE & DELIVERY,INTERSERVE FM LTD,1001906,137.74
Foreign & Commonwealth Office,Foreign & Commonwealth Office,15-Sep-10,Reception Services,DG CHANGE & DELIVERY,INTERSERVE FM LTD,1001906,"3,757.44"
Foreign & Commonwealth Office,Foreign & Commonwealth Office,15-Sep-10,Contract Porterage,DG CHANGE & DELIVERY,INTERSERVE FM LTD,1001906,"2,050.53"
Foreign & Commonwealth Office,Foreign & Commonwealth Office,15-Sep-10,Stationery - General,DG CHANGE & DELIVERY,INTERSERVE FM LTD,1001906,939.36
Foreign & Commonwealth Office,Foreign & Commonwealth Office,15-Sep-10,Corporate Strategy Consultancy,DG CHANGE & DELIVERY,INTERSERVE FM LTD,1001906,117.24
Foreign & Commonwealth Office,Foreign & Commonwealth Office,15-Sep-10,Property and Construction Consultancy,DG CHANGE & DELIVERY,INTERSERVE FM LTD,1001906,"5,950.40"
Foreign & Commonwealth Office,Foreign & Commonwealth Office,15-Sep-10,Rematching / Reinstatement,DG CHANGE & DELIVERY,INTERSERVE FM LTD,1001906,"2,785.73"
Foreign & Commonwealth Office,Foreign & Commonwealth Office,15-Sep-10,Contract Fees,DG CHANGE & DELIVERY,INTERSERVE FM LTD,1001906,"3,645.49"
Foreign & Commonwealth Office,Foreign & Commonwealth Office,15-Sep-10,FM Interserve Overseas Reclaimable Tax,DG CHANGE & DELIVERY,INTERSERVE FM LTD,1001906,"4,840.41"
Foreign & Commonwealth Office,Foreign & Commonwealth Office,15-Sep-10,FM Interserve Overseas Reclaimable Tax,DG CHANGE & DELIVERY,INTERSERVE FM LTD,1001906,0.01
Foreign & Commonwealth Office,Foreign & Commonwealth Office,15-Sep-10,Maintenance M and E,DG CHANGE & DELIVERY,INTERSERVE FM LTD,1001908,"5,547.42"
Foreign & Commonwealth Office,Foreign & Commonwealth Office,15-Sep-10,Minor New Works <10K,DG CHANGE & DELIVERY,INTERSERVE FM LTD,1001908,992.41
Foreign & Commonwealth Office,Foreign & Commonwealth Office,15-Sep-10,Grounds Mainteance,DG CHANGE & DELIVERY,INTERSERVE FM LTD,1001908,571.65
Foreign & Commonwealth Office,Foreign & Commonwealth Office,15-Sep-10,Cleaning,DG CHANGE & DELIVERY,INTERSERVE FM LTD,1001908,"4,839.28"
Foreign & Commonwealth Office,Foreign & Commonwealth Office,15-Sep-10,Cleaning,DG CHANGE & DELIVERY,INTERSERVE FM LTD,1001908,373.04
Foreign & Commonwealth Office,Foreign & Commonwealth Office,15-Sep-10,Miscellaneous Expenditure,DG CHANGE & DELIVERY,INTERSERVE FM LTD,1001908,368.52
Foreign & Commonwealth Office,Foreign & Commonwealth Office,15-Sep-10,Waste Disposal,DG CHANGE & DELIVERY,INTERSERVE FM LTD,1001908,440.83
Foreign & Commonwealth Office,Foreign & Commonwealth Office,15-Sep-10,Reception Services,DG CHANGE & DELIVERY,INTERSERVE FM LTD,1001908,"2,966.98"
Foreign & Commonwealth Office,Foreign & Commonwealth Office,15-Sep-10,Contract Porterage,DG CHANGE & DELIVERY,INTERSERVE FM LTD,1001908,"3,662.70"
Foreign & Commonwealth Office,Foreign & Commonwealth Office,15-Sep-10,Stationery - General,DG CHANGE & DELIVERY,INTERSERVE FM LTD,1001908,741.74
Foreign & Commonwealth Office,Foreign & Commonwealth Office,15-Sep-10,Corporate Strategy Consultancy,DG CHANGE & DELIVERY,INTERSERVE FM LTD,1001908,225.14
Foreign & Commonwealth Office,Foreign & Commonwealth Office,15-Sep-10,Property and Construction Consultancy,DG CHANGE & DELIVERY,INTERSERVE FM LTD,1001908,"9,597.57"
Foreign & Commonwealth Office,Foreign & Commonwealth Office,15-Sep-10,Contract Fees,DG CHANGE & DELIVERY,INTERSERVE FM LTD,1001908,"8,108.66"
Foreign & Commonwealth Office,Foreign & Commonwealth Office,15-Sep-10,FM Interserve Overseas Reclaimable Tax,DG CHANGE & DELIVERY,INTERSERVE FM LTD,1001908,"7,687.19"
Foreign & Commonwealth Office,Foreign & Commonwealth Office,15-Sep-10,FM Interserve Overseas Reclaimable Tax,DG CHANGE & DELIVERY,INTERSERVE FM LTD,1001908,-0.01
Foreign & Commonwealth Office,Foreign & Commonwealth Office,15-Sep-10,Programme Spend (Oracle Projects Control Account),DG CENTRAL GROUP,BRITISH COUNCIL,1172226,"37,060.44"
Foreign & Commonwealth Office,Foreign & Commonwealth Office,15-Sep-10,Programme Spend (Oracle Projects Control Account),DG CENTRAL GROUP,BRITISH COUNCIL,1172226,"19,339.47"
Foreign & Commonwealth Office,Foreign & Commonwealth Office,15-Sep-10,Corporate Strategy Consultancy,DG FINANCE,DTZ CONSULTING AND RESEARCH,1172240,"71,819.49"
Foreign & Commonwealth Office,Foreign & Commonwealth Office,15-Sep-10,VAT (Input) (Oracle Sub-Ledger Control Account),NON CASH & UNALLOCATED COSTS,DTZ CONSULTING AND RESEARCH,1172240,"12,568.41"
Foreign & Commonwealth Office,Foreign & Commonwealth Office,15-Sep-10,Additional Volunteer Contribution,NON CASH & UNALLOCATED COSTS,SCOTTISH WIDOWS PLC,1172276,"29,099.26"
Foreign & Commonwealth Office,Foreign & Commonwealth Office,15-Sep-10,Aslc Contribution,NON CASH & UNALLOCATED COSTS,CABINET OFFICE,3000157,"3,495,009.43"
Foreign & Commonwealth Office,Foreign & Commonwealth Office,15-Sep-10,Added Years and Wwpsc,NON CASH & UNALLOCATED COSTS,CABINET OFFICE,3000157,"411,070.92"
Foreign & Commonwealth Office,Foreign & Commonwealth Office,15-Sep-10,Added Years and Wwpsc,NON CASH & UNALLOCATED COSTS,CABINET OFFICE,3000157,"67,340.54"
Foreign & Commonwealth Office,Foreign & Commonwealth Office,15-Sep-10,Customer Refund Account,NON CASH & UNALLOCATED COSTS,DFID DEPARTMENT FOR INTERNATIONAL DEVELOPMENT,3000160,"104,175.80"
Foreign & Commonwealth Office,Foreign & Commonwealth Office,15-Sep-10,P.A.Y.E Income Tax (Oracle PAY Control Account),NON CASH & UNALLOCATED COSTS,HM REVENUE & CUSTOMS,3000172,"3,902,620.97"
Foreign & Commonwealth Office,Foreign & Commonwealth Office,15-Sep-10,National Insurance (NI) (Oracle PAY Control Account),NON CASH & UNALLOCATED COSTS,HM REVENUE & CUSTOMS,3000172,"2,290,468.71"
Foreign & Commonwealth Office,Foreign & Commonwealth Office,16-Sep-10,Maintenance M and E,DG CHANGE & DELIVERY,INTERSERVE FM LTD,9674,"2,431.11"
Foreign & Commonwealth Office,Foreign & Commonwealth Office,16-Sep-10,Maintenance B and Ce,DG CHANGE & DELIVERY,INTERSERVE FM LTD,9674,249.99
Foreign & Commonwealth Office,Foreign & Commonwealth Office,16-Sep-10,Minor New Works <10K,DG CHANGE & DELIVERY,INTERSERVE FM LTD,9674,873.87
Foreign & Commonwealth Office,Foreign & Commonwealth Office,16-Sep-10,Grounds Mainteance,DG CHANGE & DELIVERY,INTERSERVE FM LTD,9674,223.87
Foreign & Commonwealth Office,Foreign & Commonwealth Office,16-Sep-10,Cleaning,DG CHANGE & DELIVERY,INTERSERVE FM LTD,9674,"9,840.15"
Foreign & Commonwealth Office,Foreign & Commonwealth Office,16-Sep-10,Cleaning,DG CHANGE & DELIVERY,INTERSERVE FM LTD,9674,403.29
Foreign & Commonwealth Office,Foreign & Commonwealth Office,16-Sep-10,Miscellaneous Expenditure,DG CHANGE & DELIVERY,INTERSERVE FM LTD,9674,111.13
Foreign & Commonwealth Office,Foreign & Commonwealth Office,16-Sep-10,Waste Disposal,DG CHANGE & DELIVERY,INTERSERVE FM LTD,9674,502.78
Foreign & Commonwealth Office,Foreign & Commonwealth Office,16-Sep-10,Reception Services,DG CHANGE & DELIVERY,INTERSERVE FM LTD,9674,"6,684.60"
Foreign & Commonwealth Office,Foreign & Commonwealth Office,16-Sep-10,Contract Porterage,DG CHANGE & DELIVERY,INTERSERVE FM LTD,9674,"5,237.78"
Foreign & Commonwealth Office,Foreign & Commonwealth Office,16-Sep-10,Stationery - General,DG CHANGE & DELIVERY,INTERSERVE FM LTD,9674,"1,671.15"
Foreign & Commonwealth Office,Foreign & Commonwealth Office,16-Sep-10,Corporate Strategy Consultancy,DG CHANGE & DELIVERY,INTERSERVE FM LTD,9674,144.75
Foreign & Commonwealth Office,Foreign & Commonwealth Office,16-Sep-10,Property and Construction Consultancy,DG CHANGE & DELIVERY,INTERSERVE FM LTD,9674,"11,277.85"
Foreign & Commonwealth Office,Foreign & Commonwealth Office,16-Sep-10,Rematching / Reinstatement,DG CHANGE & DELIVERY,INTERSERVE FM LTD,9674,170.92
Foreign & Commonwealth Office,Foreign & Commonwealth Office,16-Sep-10,Contract Fees,DG CHANGE & DELIVERY,INTERSERVE FM LTD,9674,"5,899.28"
Foreign & Commonwealth Office,Foreign & Commonwealth Office,16-Sep-10,Maintenance M and E,DG CHANGE & DELIVERY,INTERSERVE FM LTD,9675,"3,355.24"
Foreign & Commonwealth Office,Foreign & Commonwealth Office,16-Sep-10,Minor New Works <10K,DG CHANGE & DELIVERY,INTERSERVE FM LTD,9675,664.52
Foreign & Commonwealth Office,Foreign & Commonwealth Office,16-Sep-10,Grounds Mainteance,DG CHANGE & DELIVERY,INTERSERVE FM LTD,9675,481.42
Foreign & Commonwealth Office,Foreign & Commonwealth Office,16-Sep-10,Cleaning,DG CHANGE & DELIVERY,INTERSERVE FM LTD,9675,"3,887.74"
Foreign & Commonwealth Office,Foreign & Commonwealth Office,16-Sep-10,Cleaning,DG CHANGE & DELIVERY,INTERSERVE FM LTD,9675,329.73
Foreign & Commonwealth Office,Foreign & Commonwealth Office,16-Sep-10,Miscellaneous Expenditure,DG CHANGE & DELIVERY,INTERSERVE FM LTD,9675,65.79
Foreign & Commonwealth Office,Foreign & Commonwealth Office,16-Sep-10,Waste Disposal,DG CHANGE & DELIVERY,INTERSERVE FM LTD,9675,333.18
Foreign & Commonwealth Office,Foreign & Commonwealth Office,16-Sep-10,Reception Services,DG CHANGE & DELIVERY,INTERSERVE FM LTD,9675,"6,680.29"
Foreign & Commonwealth Office,Foreign & Commonwealth Office,16-Sep-10,Contract Porterage,DG CHANGE & DELIVERY,INTERSERVE FM LTD,9675,"4,767.80"
Foreign & Commonwealth Office,Foreign & Commonwealth Office,16-Sep-10,Stationery - General,DG CHANGE & DELIVERY,INTERSERVE FM LTD,9675,"1,670.07"
Foreign & Commonwealth Office,Foreign & Commonwealth Office,16-Sep-10,Property and Construction Consultancy,DG CHANGE & DELIVERY,INTERSERVE FM LTD,9675,999.48
Foreign & Commonwealth Office,Foreign & Commonwealth Office,16-Sep-10,Rematching / Reinstatement,DG CHANGE & DELIVERY,INTERSERVE FM LTD,9675,706.71
Foreign & Commonwealth Office,Foreign & Commonwealth Office,16-Sep-10,Contract Fees,DG CHANGE & DELIVERY,INTERSERVE FM LTD,9675,"5,168.34"
Foreign & Commonwealth Office,Foreign & Commonwealth Office,16-Sep-10,Maintenance M and E,DG CHANGE & DELIVERY,INTERSERVE FM LTD,1001909,"6,362.90"
Foreign & Commonwealth Office,Foreign & Commonwealth Office,16-Sep-10,Minor New Works <10K,DG CHANGE & DELIVERY,INTERSERVE FM LTD,1001909,"1,138.29"
Foreign & Commonwealth Office,Foreign & Commonwealth Office,16-Sep-10,Grounds Mainteance,DG CHANGE & DELIVERY,INTERSERVE FM LTD,1001909,655.68
Foreign & Commonwealth Office,Foreign & Commonwealth Office,16-Sep-10,Cleaning,DG CHANGE & DELIVERY,INTERSERVE FM LTD,1001909,"5,550.65"
Foreign & Commonwealth Office,Foreign & Commonwealth Office,16-Sep-10,Cleaning,DG CHANGE & DELIVERY,INTERSERVE FM LTD,1001909,427.87
Foreign & Commonwealth Office,Foreign & Commonwealth Office,16-Sep-10,Miscellaneous Expenditure,DG CHANGE & DELIVERY,INTERSERVE FM LTD,1001909,422.69
Foreign & Commonwealth Office,Foreign & Commonwealth Office,16-Sep-10,Waste Disposal,DG CHANGE & DELIVERY,INTERSERVE FM LTD,1001909,505.64
Foreign & Commonwealth Office,Foreign & Commonwealth Office,16-Sep-10,Reception Services,DG CHANGE & DELIVERY,INTERSERVE FM LTD,1001909,"3,403.12"
Foreign & Commonwealth Office,Foreign & Commonwealth Office,16-Sep-10,Contract Porterage,DG CHANGE & DELIVERY,INTERSERVE FM LTD,1001909,"4,201.12"
Foreign & Commonwealth Office,Foreign & Commonwealth Office,16-Sep-10,Stationery - General,DG CHANGE & DELIVERY,INTERSERVE FM LTD,1001909,850.78
Foreign & Commonwealth Office,Foreign & Commonwealth Office,16-Sep-10,Corporate Strategy Consultancy,DG CHANGE & DELIVERY,INTERSERVE FM LTD,1001909,258.24
Foreign & Commonwealth Office,Foreign & Commonwealth Office,16-Sep-10,Property and Construction Consultancy,DG CHANGE & DELIVERY,INTERSERVE FM LTD,1001909,"11,008.42"
Foreign & Commonwealth Office,Foreign & Commonwealth Office,16-Sep-10,Contract Fees,DG CHANGE & DELIVERY,INTERSERVE FM LTD,1001909,"9,782.38"
Foreign & Commonwealth Office,Foreign & Commonwealth Office,16-Sep-10,FM Interserve Overseas Reclaimable Tax,DG CHANGE & DELIVERY,INTERSERVE FM LTD,1001909,"1,272.58"
Foreign & Commonwealth Office,Foreign & Commonwealth Office,16-Sep-10,FM Interserve Overseas Reclaimable Tax,DG CHANGE & DELIVERY,INTERSERVE FM LTD,1001909,227.66
Foreign & Commonwealth Office,Foreign & Commonwealth Office,16-Sep-10,FM Interserve Overseas Reclaimable Tax,DG CHANGE & DELIVERY,INTERSERVE FM LTD,1001909,131.14
Foreign & Commonwealth Office,Foreign & Commonwealth Office,16-Sep-10,FM Interserve Overseas Reclaimable Tax,DG CHANGE & DELIVERY,INTERSERVE FM LTD,1001909,"1,110.13"
Foreign & Commonwealth Office,Foreign & Commonwealth Office,16-Sep-10,FM Interserve Overseas Reclaimable Tax,DG CHANGE & DELIVERY,INTERSERVE FM LTD,1001909,85.57
Foreign & Commonwealth Office,Foreign & Commonwealth Office,16-Sep-10,FM Interserve Overseas Reclaimable Tax,DG CHANGE & DELIVERY,INTERSERVE FM LTD,1001909,84.54
Foreign & Commonwealth Office,Foreign & Commonwealth Office,16-Sep-10,FM Interserve Overseas Reclaimable Tax,DG CHANGE & DELIVERY,INTERSERVE FM LTD,1001909,101.13
Foreign & Commonwealth Office,Foreign & Commonwealth Office,16-Sep-10,FM Interserve Overseas Reclaimable Tax,DG CHANGE & DELIVERY,INTERSERVE FM LTD,1001909,680.63
Foreign & Commonwealth Office,Foreign & Commonwealth Office,16-Sep-10,FM Interserve Overseas Reclaimable Tax,DG CHANGE & DELIVERY,INTERSERVE FM LTD,1001909,840.23
Foreign & Commonwealth Office,Foreign & Commonwealth Office,16-Sep-10,FM Interserve Overseas Reclaimable Tax,DG CHANGE & DELIVERY,INTERSERVE FM LTD,1001909,170.16
Foreign & Commonwealth Office,Foreign & Commonwealth Office,16-Sep-10,FM Interserve Overseas Reclaimable Tax,DG CHANGE & DELIVERY,INTERSERVE FM LTD,1001909,51.65
Foreign & Commonwealth Office,Foreign & Commonwealth Office,16-Sep-10,FM Interserve Overseas Reclaimable Tax,DG CHANGE & DELIVERY,INTERSERVE FM LTD,1001909,"2,201.68"
Foreign & Commonwealth Office,Foreign & Commonwealth Office,16-Sep-10,FM Interserve Overseas Reclaimable Tax,DG CHANGE & DELIVERY,INTERSERVE FM LTD,1001909,"1,956.48"
Foreign & Commonwealth Office,Foreign & Commonwealth Office,16-Sep-10,Maintenance M and E,DG CHANGE & DELIVERY,INTERSERVE FM LTD,1001911,"2,182.89"
Foreign & Commonwealth Office,Foreign & Commonwealth Office,16-Sep-10,Minor New Works <10K,DG CHANGE & DELIVERY,INTERSERVE FM LTD,1001911,488.66
Foreign & Commonwealth Office,Foreign & Commonwealth Office,16-Sep-10,Grounds Mainteance,DG CHANGE & DELIVERY,INTERSERVE FM LTD,1001911,352.37
Foreign & Commonwealth Office,Foreign & Commonwealth Office,16-Sep-10,Cleaning,DG CHANGE & DELIVERY,INTERSERVE FM LTD,1001911,"2,761.26"
Foreign & Commonwealth Office,Foreign & Commonwealth Office,16-Sep-10,Cleaning,DG CHANGE & DELIVERY,INTERSERVE FM LTD,1001911,206.68
Foreign & Commonwealth Office,Foreign & Commonwealth Office,16-Sep-10,Miscellaneous Expenditure,DG CHANGE & DELIVERY,INTERSERVE FM LTD,1001911,431.35
Foreign & Commonwealth Office,Foreign & Commonwealth Office,16-Sep-10,Waste Disposal,DG CHANGE & DELIVERY,INTERSERVE FM LTD,1001911,144.48
Foreign & Commonwealth Office,Foreign & Commonwealth Office,16-Sep-10,Reception Services,DG CHANGE & DELIVERY,INTERSERVE FM LTD,1001911,"3,941.56"
Foreign & Commonwealth Office,Foreign & Commonwealth Office,16-Sep-10,Contract Porterage,DG CHANGE & DELIVERY,INTERSERVE FM LTD,1001911,"2,151.01"
Foreign & Commonwealth Office,Foreign & Commonwealth Office,16-Sep-10,Stationery - General,DG CHANGE & DELIVERY,INTERSERVE FM LTD,1001911,985.39
Foreign & Commonwealth Office,Foreign & Commonwealth Office,16-Sep-10,Corporate Strategy Consultancy,DG CHANGE & DELIVERY,INTERSERVE FM LTD,1001911,122.99
Foreign & Commonwealth Office,Foreign & Commonwealth Office,16-Sep-10,Property and Construction Consultancy,DG CHANGE & DELIVERY,INTERSERVE FM LTD,1001911,"6,241.97"
Foreign & Commonwealth Office,Foreign & Commonwealth Office,16-Sep-10,Rematching / Reinstatement,DG CHANGE & DELIVERY,INTERSERVE FM LTD,1001911,"2,922.23"
Foreign & Commonwealth Office,Foreign & Commonwealth Office,16-Sep-10,Contract Fees,DG CHANGE & DELIVERY,INTERSERVE FM LTD,1001911,"3,826.58"
Foreign & Commonwealth Office,Foreign & Commonwealth Office,16-Sep-10,FM Interserve Overseas Reclaimable Tax,DG CHANGE & DELIVERY,INTERSERVE FM LTD,1001911,414.75
Foreign & Commonwealth Office,Foreign & Commonwealth Office,16-Sep-10,FM Interserve Overseas Reclaimable Tax,DG CHANGE & DELIVERY,INTERSERVE FM LTD,1001911,92.84
Foreign & Commonwealth Office,Foreign & Commonwealth Office,16-Sep-10,FM Interserve Overseas Reclaimable Tax,DG CHANGE & DELIVERY,INTERSERVE FM LTD,1001911,66.95
Foreign & Commonwealth Office,Foreign & Commonwealth Office,16-Sep-10,FM Interserve Overseas Reclaimable Tax,DG CHANGE & DELIVERY,INTERSERVE FM LTD,1001911,524.64
Foreign & Commonwealth Office,Foreign & Commonwealth Office,16-Sep-10,FM Interserve Overseas Reclaimable Tax,DG CHANGE & DELIVERY,INTERSERVE FM LTD,1001911,39.27
Foreign & Commonwealth Office,Foreign & Commonwealth Office,16-Sep-10,FM Interserve Overseas Reclaimable Tax,DG CHANGE & DELIVERY,INTERSERVE FM LTD,1001911,81.96
Foreign & Commonwealth Office,Foreign & Commonwealth Office,16-Sep-10,FM Interserve Overseas Reclaimable Tax,DG CHANGE & DELIVERY,INTERSERVE FM LTD,1001911,27.46
Foreign & Commonwealth Office,Foreign & Commonwealth Office,16-Sep-10,FM Interserve Overseas Reclaimable Tax,DG CHANGE & DELIVERY,INTERSERVE FM LTD,1001911,748.89
Foreign & Commonwealth Office,Foreign & Commonwealth Office,16-Sep-10,FM Interserve Overseas Reclaimable Tax,DG CHANGE & DELIVERY,INTERSERVE FM LTD,1001911,408.69
Foreign & Commonwealth Office,Foreign & Commonwealth Office,16-Sep-10,FM Interserve Overseas Reclaimable Tax,DG CHANGE & DELIVERY,INTERSERVE FM LTD,1001911,187.23
Foreign & Commonwealth Office,Foreign & Commonwealth Office,16-Sep-10,FM Interserve Overseas Reclaimable Tax,DG CHANGE & DELIVERY,INTERSERVE FM LTD,1001911,23.36
Foreign & Commonwealth Office,Foreign & Commonwealth Office,16-Sep-10,FM Interserve Overseas Reclaimable Tax,DG CHANGE & DELIVERY,INTERSERVE FM LTD,1001911,"1,185.97"
Foreign & Commonwealth Office,Foreign & Commonwealth Office,16-Sep-10,FM Interserve Overseas Reclaimable Tax,DG CHANGE & DELIVERY,INTERSERVE FM LTD,1001911,555.22
Foreign & Commonwealth Office,Foreign & Commonwealth Office,16-Sep-10,FM Interserve Overseas Reclaimable Tax,DG CHANGE & DELIVERY,INTERSERVE FM LTD,1001911,727.05
Foreign & Commonwealth Office,Foreign & Commonwealth Office,16-Sep-10,Maintenance M and E,DG CHANGE & DELIVERY,INTERSERVE FM LTD,1001912,"2,131.55"
Foreign & Commonwealth Office,Foreign & Commonwealth Office,16-Sep-10,Maintenance B and Ce,DG CHANGE & DELIVERY,INTERSERVE FM LTD,1001912,64.45
Foreign & Commonwealth Office,Foreign & Commonwealth Office,16-Sep-10,Minor New Works <10K,DG CHANGE & DELIVERY,INTERSERVE FM LTD,1001912,500.11
Foreign & Commonwealth Office,Foreign & Commonwealth Office,16-Sep-10,Grounds Mainteance,DG CHANGE & DELIVERY,INTERSERVE FM LTD,1001912,115.44
Foreign & Commonwealth Office,Foreign & Commonwealth Office,16-Sep-10,Cleaning,DG CHANGE & DELIVERY,INTERSERVE FM LTD,1001912,"3,279.30"
Foreign & Commonwealth Office,Foreign & Commonwealth Office,16-Sep-10,Cleaning,DG CHANGE & DELIVERY,INTERSERVE FM LTD,1001912,135.96
Foreign & Commonwealth Office,Foreign & Commonwealth Office,16-Sep-10,Miscellaneous Expenditure,DG CHANGE & DELIVERY,INTERSERVE FM LTD,1001912,154.9
Foreign & Commonwealth Office,Foreign & Commonwealth Office,16-Sep-10,Waste Disposal,DG CHANGE & DELIVERY,INTERSERVE FM LTD,1001912,373.77
Foreign & Commonwealth Office,Foreign & Commonwealth Office,16-Sep-10,Reception Services,DG CHANGE & DELIVERY,INTERSERVE FM LTD,1001912,"5,836.55"
Foreign & Commonwealth Office,Foreign & Commonwealth Office,16-Sep-10,Contract Porterage,DG CHANGE & DELIVERY,INTERSERVE FM LTD,1001912,"4,674.26"
Foreign & Commonwealth Office,Foreign & Commonwealth Office,16-Sep-10,Stationery - General,DG CHANGE & DELIVERY,INTERSERVE FM LTD,1001912,"1,459.13"
Foreign & Commonwealth Office,Foreign & Commonwealth Office,16-Sep-10,Corporate Strategy Consultancy,DG CHANGE & DELIVERY,INTERSERVE FM LTD,1001912,82.16
Foreign & Commonwealth Office,Foreign & Commonwealth Office,16-Sep-10,Property and Construction Consultancy,DG CHANGE & DELIVERY,INTERSERVE FM LTD,1001912,416.24
Foreign & Commonwealth Office,Foreign & Commonwealth Office,16-Sep-10,Rematching / Reinstatement,DG CHANGE & DELIVERY,INTERSERVE FM LTD,1001912,463.54
Foreign & Commonwealth Office,Foreign & Commonwealth Office,16-Sep-10,Contract Fees,DG CHANGE & DELIVERY,INTERSERVE FM LTD,1001912,"3,687.11"
Foreign & Commonwealth Office,Foreign & Commonwealth Office,16-Sep-10,FM Interserve Overseas Reclaimable Tax,DG CHANGE & DELIVERY,INTERSERVE FM LTD,1001912,404.99
Foreign & Commonwealth Office,Foreign & Commonwealth Office,16-Sep-10,FM Interserve Overseas Reclaimable Tax,DG CHANGE & DELIVERY,INTERSERVE FM LTD,1001912,12.25
Foreign & Commonwealth Office,Foreign & Commonwealth Office,16-Sep-10,FM Interserve Overseas Reclaimable Tax,DG CHANGE & DELIVERY,INTERSERVE FM LTD,1001912,95.02
Foreign & Commonwealth Office,Foreign & Commonwealth Office,16-Sep-10,FM Interserve Overseas Reclaimable Tax,DG CHANGE & DELIVERY,INTERSERVE FM LTD,1001912,21.93
Foreign & Commonwealth Office,Foreign & Commonwealth Office,16-Sep-10,FM Interserve Overseas Reclaimable Tax,DG CHANGE & DELIVERY,INTERSERVE FM LTD,1001912,623.07
Foreign & Commonwealth Office,Foreign & Commonwealth Office,16-Sep-10,FM Interserve Overseas Reclaimable Tax,DG CHANGE & DELIVERY,INTERSERVE FM LTD,1001912,25.83
Foreign & Commonwealth Office,Foreign & Commonwealth Office,16-Sep-10,FM Interserve Overseas Reclaimable Tax,DG CHANGE & DELIVERY,INTERSERVE FM LTD,1001912,29.43
Foreign & Commonwealth Office,Foreign & Commonwealth Office,16-Sep-10,FM Interserve Overseas Reclaimable Tax,DG CHANGE & DELIVERY,INTERSERVE FM LTD,1001912,71.02
Foreign & Commonwealth Office,Foreign & Commonwealth Office,16-Sep-10,FM Interserve Overseas Reclaimable Tax,DG CHANGE & DELIVERY,INTERSERVE FM LTD,1001912,"1,108.94"
Foreign & Commonwealth Office,Foreign & Commonwealth Office,16-Sep-10,FM Interserve Overseas Reclaimable Tax,DG CHANGE & DELIVERY,INTERSERVE FM LTD,1001912,888.11
Foreign & Commonwealth Office,Foreign & Commonwealth Office,16-Sep-10,FM Interserve Overseas Reclaimable Tax,DG CHANGE & DELIVERY,INTERSERVE FM LTD,1001912,277.23
Foreign & Commonwealth Office,Foreign & Commonwealth Office,16-Sep-10,FM Interserve Overseas Reclaimable Tax,DG CHANGE & DELIVERY,INTERSERVE FM LTD,1001912,15.61
Foreign & Commonwealth Office,Foreign & Commonwealth Office,16-Sep-10,FM Interserve Overseas Reclaimable Tax,DG CHANGE & DELIVERY,INTERSERVE FM LTD,1001912,79.09
Foreign & Commonwealth Office,Foreign & Commonwealth Office,16-Sep-10,FM Interserve Overseas Reclaimable Tax,DG CHANGE & DELIVERY,INTERSERVE FM LTD,1001912,88.07
Foreign & Commonwealth Office,Foreign & Commonwealth Office,16-Sep-10,FM Interserve Overseas Reclaimable Tax,DG CHANGE & DELIVERY,INTERSERVE FM LTD,1001912,700.55
Foreign & Commonwealth Office,Foreign & Commonwealth Office,16-Sep-10,Maintenance M and E,DG CHANGE & DELIVERY,INTERSERVE FM LTD,1001915,"14,222.64"
Foreign & Commonwealth Office,Foreign & Commonwealth Office,16-Sep-10,Minor New Works <10K,DG CHANGE & DELIVERY,INTERSERVE FM LTD,1001915,"9,934.75"
Foreign & Commonwealth Office,Foreign & Commonwealth Office,16-Sep-10,Grounds Mainteance,DG CHANGE & DELIVERY,INTERSERVE FM LTD,1001915,511.7
Foreign & Commonwealth Office,Foreign & Commonwealth Office,16-Sep-10,Cleaning,DG CHANGE & DELIVERY,INTERSERVE FM LTD,1001915,"30,123.88"
Foreign & Commonwealth Office,Foreign & Commonwealth Office,16-Sep-10,Cleaning,DG CHANGE & DELIVERY,INTERSERVE FM LTD,1001915,71.31
Foreign & Commonwealth Office,Foreign & Commonwealth Office,16-Sep-10,Miscellaneous Expenditure,DG CHANGE & DELIVERY,INTERSERVE FM LTD,1001915,"1,081.44"
Foreign & Commonwealth Office,Foreign & Commonwealth Office,16-Sep-10,Waste Disposal,DG CHANGE & DELIVERY,INTERSERVE FM LTD,1001915,646.9
Foreign & Commonwealth Office,Foreign & Commonwealth Office,16-Sep-10,Reception Services,DG CHANGE & DELIVERY,INTERSERVE FM LTD,1001915,"13,571.68"
Foreign & Commonwealth Office,Foreign & Commonwealth Office,16-Sep-10,Contract Porterage,DG CHANGE & DELIVERY,INTERSERVE FM LTD,1001915,"8,476.08"
Foreign & Commonwealth Office,Foreign & Commonwealth Office,16-Sep-10,Stationery - General,DG CHANGE & DELIVERY,INTERSERVE FM LTD,1001915,"3,392.92"
Foreign & Commonwealth Office,Foreign & Commonwealth Office,16-Sep-10,Property and Construction Consultancy,DG CHANGE & DELIVERY,INTERSERVE FM LTD,1001915,"32,300.16"
Foreign & Commonwealth Office,Foreign & Commonwealth Office,16-Sep-10,Rematching / Reinstatement,DG CHANGE & DELIVERY,INTERSERVE FM LTD,1001915,"7,773.57"
Foreign & Commonwealth Office,Foreign & Commonwealth Office,16-Sep-10,Contract Fees,DG CHANGE & DELIVERY,INTERSERVE FM LTD,1001915,"12,079.38"
Foreign & Commonwealth Office,Foreign & Commonwealth Office,16-Sep-10,Maintenance M and E,DG CHANGE & DELIVERY,INTERSERVE FM LTD,1001917,"15,551.35"
Foreign & Commonwealth Office,Foreign & Commonwealth Office,16-Sep-10,Minor New Works <10K,DG CHANGE & DELIVERY,INTERSERVE FM LTD,1001917,"10,862.88"
Foreign & Commonwealth Office,Foreign & Commonwealth Office,16-Sep-10,Grounds Mainteance,DG CHANGE & DELIVERY,INTERSERVE FM LTD,1001917,559.5
Foreign & Commonwealth Office,Foreign & Commonwealth Office,16-Sep-10,Cleaning,DG CHANGE & DELIVERY,INTERSERVE FM LTD,1001917,"32,938.12"
Foreign & Commonwealth Office,Foreign & Commonwealth Office,16-Sep-10,Cleaning,DG CHANGE & DELIVERY,INTERSERVE FM LTD,1001917,77.98
Foreign & Commonwealth Office,Foreign & Commonwealth Office,16-Sep-10,Miscellaneous Expenditure,DG CHANGE & DELIVERY,INTERSERVE FM LTD,1001917,"1,182.47"
Foreign & Commonwealth Office,Foreign & Commonwealth Office,16-Sep-10,Waste Disposal,DG CHANGE & DELIVERY,INTERSERVE FM LTD,1001917,707.33
Foreign & Commonwealth Office,Foreign & Commonwealth Office,16-Sep-10,Reception Services,DG CHANGE & DELIVERY,INTERSERVE FM LTD,1001917,"14,839.57"
Foreign & Commonwealth Office,Foreign & Commonwealth Office,16-Sep-10,Contract Porterage,DG CHANGE & DELIVERY,INTERSERVE FM LTD,1001917,"9,267.94"
Foreign & Commonwealth Office,Foreign & Commonwealth Office,16-Sep-10,Stationery - General,DG CHANGE & DELIVERY,INTERSERVE FM LTD,1001917,"3,709.90"
Foreign & Commonwealth Office,Foreign & Commonwealth Office,16-Sep-10,Property and Construction Consultancy,DG CHANGE & DELIVERY,INTERSERVE FM LTD,1001917,"35,317.72"
Foreign & Commonwealth Office,Foreign & Commonwealth Office,16-Sep-10,Rematching / Reinstatement,DG CHANGE & DELIVERY,INTERSERVE FM LTD,1001917,"8,499.79"
Foreign & Commonwealth Office,Foreign & Commonwealth Office,16-Sep-10,Contract Fees,DG CHANGE & DELIVERY,INTERSERVE FM LTD,1001917,"13,207.87"
Foreign & Commonwealth Office,Foreign & Commonwealth Office,16-Sep-10,Maintenance M and E,DG CHANGE & DELIVERY,INTERSERVE FM LTD,1001918,"2,330.69"
Foreign & Commonwealth Office,Foreign & Commonwealth Office,16-Sep-10,Maintenance B and Ce,DG CHANGE & DELIVERY,INTERSERVE FM LTD,1001918,70.48
Foreign & Commonwealth Office,Foreign & Commonwealth Office,16-Sep-10,Minor New Works <10K,DG CHANGE & DELIVERY,INTERSERVE FM LTD,1001918,546.84
Foreign & Commonwealth Office,Foreign & Commonwealth Office,16-Sep-10,Grounds Mainteance,DG CHANGE & DELIVERY,INTERSERVE FM LTD,1001918,126.23
Foreign & Commonwealth Office,Foreign & Commonwealth Office,16-Sep-10,Cleaning,DG CHANGE & DELIVERY,INTERSERVE FM LTD,1001918,"3,585.66"
Foreign & Commonwealth Office,Foreign & Commonwealth Office,16-Sep-10,Cleaning,DG CHANGE & DELIVERY,INTERSERVE FM LTD,1001918,148.66
Foreign & Commonwealth Office,Foreign & Commonwealth Office,16-Sep-10,Miscellaneous Expenditure,DG CHANGE & DELIVERY,INTERSERVE FM LTD,1001918,169.37
Foreign & Commonwealth Office,Foreign & Commonwealth Office,16-Sep-10,Waste Disposal,DG CHANGE & DELIVERY,INTERSERVE FM LTD,1001918,408.7
Foreign & Commonwealth Office,Foreign & Commonwealth Office,16-Sep-10,Reception Services,DG CHANGE & DELIVERY,INTERSERVE FM LTD,1001918,"6,381.81"
Foreign & Commonwealth Office,Foreign & Commonwealth Office,16-Sep-10,Contract Porterage,DG CHANGE & DELIVERY,INTERSERVE FM LTD,1001918,"5,110.94"
Foreign & Commonwealth Office,Foreign & Commonwealth Office,16-Sep-10,Stationery - General,DG CHANGE & DELIVERY,INTERSERVE FM LTD,1001918,"1,595.45"
Foreign & Commonwealth Office,Foreign & Commonwealth Office,16-Sep-10,Corporate Strategy Consultancy,DG CHANGE & DELIVERY,INTERSERVE FM LTD,1001918,89.84
Foreign & Commonwealth Office,Foreign & Commonwealth Office,16-Sep-10,Property and Construction Consultancy,DG CHANGE & DELIVERY,INTERSERVE FM LTD,1001918,455.12
Foreign & Commonwealth Office,Foreign & Commonwealth Office,16-Sep-10,Rematching / Reinstatement,DG CHANGE & DELIVERY,INTERSERVE FM LTD,1001918,506.84
Foreign & Commonwealth Office,Foreign & Commonwealth Office,16-Sep-10,Contract Fees,DG CHANGE & DELIVERY,INTERSERVE FM LTD,1001918,"4,031.57"
Foreign & Commonwealth Office,Foreign & Commonwealth Office,16-Sep-10,FM Interserve Overseas Reclaimable Tax,DG CHANGE & DELIVERY,INTERSERVE FM LTD,1001918,442.83
Foreign & Commonwealth Office,Foreign & Commonwealth Office,16-Sep-10,FM Interserve Overseas Reclaimable Tax,DG CHANGE & DELIVERY,INTERSERVE FM LTD,1001918,13.39
Foreign & Commonwealth Office,Foreign & Commonwealth Office,16-Sep-10,FM Interserve Overseas Reclaimable Tax,DG CHANGE & DELIVERY,INTERSERVE FM LTD,1001918,103.9
Foreign & Commonwealth Office,Foreign & Commonwealth Office,16-Sep-10,FM Interserve Overseas Reclaimable Tax,DG CHANGE & DELIVERY,INTERSERVE FM LTD,1001918,23.98
Foreign & Commonwealth Office,Foreign & Commonwealth Office,16-Sep-10,FM Interserve Overseas Reclaimable Tax,DG CHANGE & DELIVERY,INTERSERVE FM LTD,1001918,681.28
Foreign & Commonwealth Office,Foreign & Commonwealth Office,16-Sep-10,FM Interserve Overseas Reclaimable Tax,DG CHANGE & DELIVERY,INTERSERVE FM LTD,1001918,28.24
Foreign & Commonwealth Office,Foreign & Commonwealth Office,16-Sep-10,FM Interserve Overseas Reclaimable Tax,DG CHANGE & DELIVERY,INTERSERVE FM LTD,1001918,32.18
Foreign & Commonwealth Office,Foreign & Commonwealth Office,16-Sep-10,FM Interserve Overseas Reclaimable Tax,DG CHANGE & DELIVERY,INTERSERVE FM LTD,1001918,77.65
Foreign & Commonwealth Office,Foreign & Commonwealth Office,16-Sep-10,FM Interserve Overseas Reclaimable Tax,DG CHANGE & DELIVERY,INTERSERVE FM LTD,1001918,"1,212.54"
Foreign & Commonwealth Office,Foreign & Commonwealth Office,16-Sep-10,FM Interserve Overseas Reclaimable Tax,DG CHANGE & DELIVERY,INTERSERVE FM LTD,1001918,971.08
Foreign & Commonwealth Office,Foreign & Commonwealth Office,16-Sep-10,FM Interserve Overseas Reclaimable Tax,DG CHANGE & DELIVERY,INTERSERVE FM LTD,1001918,303.13
Foreign & Commonwealth Office,Foreign & Commonwealth Office,16-Sep-10,FM Interserve Overseas Reclaimable Tax,DG CHANGE & DELIVERY,INTERSERVE FM LTD,1001918,17.07
Foreign & Commonwealth Office,Foreign & Commonwealth Office,16-Sep-10,FM Interserve Overseas Reclaimable Tax,DG CHANGE & DELIVERY,INTERSERVE FM LTD,1001918,86.47
Foreign & Commonwealth Office,Foreign & Commonwealth Office,16-Sep-10,FM Interserve Overseas Reclaimable Tax,DG CHANGE & DELIVERY,INTERSERVE FM LTD,1001918,96.3
Foreign & Commonwealth Office,Foreign & Commonwealth Office,16-Sep-10,FM Interserve Overseas Reclaimable Tax,DG CHANGE & DELIVERY,INTERSERVE FM LTD,1001918,765.99
Foreign & Commonwealth Office,Foreign & Commonwealth Office,16-Sep-10,Maintenance M and E,DG CHANGE & DELIVERY,INTERSERVE FM LTD,1001920,"2,350.97"
Foreign & Commonwealth Office,Foreign & Commonwealth Office,16-Sep-10,Minor New Works <10K,DG CHANGE & DELIVERY,INTERSERVE FM LTD,1001920,534.31
Foreign & Commonwealth Office,Foreign & Commonwealth Office,16-Sep-10,Grounds Mainteance,DG CHANGE & DELIVERY,INTERSERVE FM LTD,1001920,385.28
Foreign & Commonwealth Office,Foreign & Commonwealth Office,16-Sep-10,Cleaning,DG CHANGE & DELIVERY,INTERSERVE FM LTD,1001920,"3,019.23"
Foreign & Commonwealth Office,Foreign & Commonwealth Office,16-Sep-10,Cleaning,DG CHANGE & DELIVERY,INTERSERVE FM LTD,1001920,225.99
Foreign & Commonwealth Office,Foreign & Commonwealth Office,16-Sep-10,Miscellaneous Expenditure,DG CHANGE & DELIVERY,INTERSERVE FM LTD,1001920,471.65
Foreign & Commonwealth Office,Foreign & Commonwealth Office,16-Sep-10,Waste Disposal,DG CHANGE & DELIVERY,INTERSERVE FM LTD,1001920,157.98
Foreign & Commonwealth Office,Foreign & Commonwealth Office,16-Sep-10,Reception Services,DG CHANGE & DELIVERY,INTERSERVE FM LTD,1001920,"4,309.79"
Foreign & Commonwealth Office,Foreign & Commonwealth Office,16-Sep-10,Contract Porterage,DG CHANGE & DELIVERY,INTERSERVE FM LTD,1001920,"2,351.97"
Foreign & Commonwealth Office,Foreign & Commonwealth Office,16-Sep-10,Stationery - General,DG CHANGE & DELIVERY,INTERSERVE FM LTD,1001920,"1,077.45"
Foreign & Commonwealth Office,Foreign & Commonwealth Office,16-Sep-10,Corporate Strategy Consultancy,DG CHANGE & DELIVERY,INTERSERVE FM LTD,1001920,134.48
Foreign & Commonwealth Office,Foreign & Commonwealth Office,16-Sep-10,Property and Construction Consultancy,DG CHANGE & DELIVERY,INTERSERVE FM LTD,1001920,"6,825.11"
Foreign & Commonwealth Office,Foreign & Commonwealth Office,16-Sep-10,Rematching / Reinstatement,DG CHANGE & DELIVERY,INTERSERVE FM LTD,1001920,"3,195.23"
Foreign & Commonwealth Office,Foreign & Commonwealth Office,16-Sep-10,Contract Fees,DG CHANGE & DELIVERY,INTERSERVE FM LTD,1001920,"4,181.38"
Foreign & Commonwealth Office,Foreign & Commonwealth Office,16-Sep-10,FM Interserve Overseas Reclaimable Tax,DG CHANGE & DELIVERY,INTERSERVE FM LTD,1001920,446.68
Foreign & Commonwealth Office,Foreign & Commonwealth Office,16-Sep-10,FM Interserve Overseas Reclaimable Tax,DG CHANGE & DELIVERY,INTERSERVE FM LTD,1001920,101.52
Foreign & Commonwealth Office,Foreign & Commonwealth Office,16-Sep-10,FM Interserve Overseas Reclaimable Tax,DG CHANGE & DELIVERY,INTERSERVE FM LTD,1001920,73.2
Foreign & Commonwealth Office,Foreign & Commonwealth Office,16-Sep-10,FM Interserve Overseas Reclaimable Tax,DG CHANGE & DELIVERY,INTERSERVE FM LTD,1001920,573.65
Foreign & Commonwealth Office,Foreign & Commonwealth Office,16-Sep-10,FM Interserve Overseas Reclaimable Tax,DG CHANGE & DELIVERY,INTERSERVE FM LTD,1001920,42.94
Foreign & Commonwealth Office,Foreign & Commonwealth Office,16-Sep-10,FM Interserve Overseas Reclaimable Tax,DG CHANGE & DELIVERY,INTERSERVE FM LTD,1001920,89.61
Foreign & Commonwealth Office,Foreign & Commonwealth Office,16-Sep-10,FM Interserve Overseas Reclaimable Tax,DG CHANGE & DELIVERY,INTERSERVE FM LTD,1001920,30.01
Foreign & Commonwealth Office,Foreign & Commonwealth Office,16-Sep-10,FM Interserve Overseas Reclaimable Tax,DG CHANGE & DELIVERY,INTERSERVE FM LTD,1001920,818.86
Foreign & Commonwealth Office,Foreign & Commonwealth Office,16-Sep-10,FM Interserve Overseas Reclaimable Tax,DG CHANGE & DELIVERY,INTERSERVE FM LTD,1001920,446.88
Foreign & Commonwealth Office,Foreign & Commonwealth Office,16-Sep-10,FM Interserve Overseas Reclaimable Tax,DG CHANGE & DELIVERY,INTERSERVE FM LTD,1001920,204.71
Foreign & Commonwealth Office,Foreign & Commonwealth Office,16-Sep-10,FM Interserve Overseas Reclaimable Tax,DG CHANGE & DELIVERY,INTERSERVE FM LTD,1001920,25.55
Foreign & Commonwealth Office,Foreign & Commonwealth Office,16-Sep-10,FM Interserve Overseas Reclaimable Tax,DG CHANGE & DELIVERY,INTERSERVE FM LTD,1001920,"1,296.77"
Foreign & Commonwealth Office,Foreign & Commonwealth Office,16-Sep-10,FM Interserve Overseas Reclaimable Tax,DG CHANGE & DELIVERY,INTERSERVE FM LTD,1001920,607.09
Foreign & Commonwealth Office,Foreign & Commonwealth Office,16-Sep-10,FM Interserve Overseas Reclaimable Tax,DG CHANGE & DELIVERY,INTERSERVE FM LTD,1001920,794.47
Foreign & Commonwealth Office,Foreign & Commonwealth Office,16-Sep-10,Programme Spend (Oracle Projects Control Account),DG EUROPE AND GLOBALISATION,UNITED NATIONS DEVELOPMENT PROGRAMME,1005435,"39,163.72"
Foreign & Commonwealth Office,Foreign & Commonwealth Office,16-Sep-10,Programme Spend (Oracle Projects Control Account),DG CENTRAL GROUP,BRITISH COUNCIL,1172295,"517,500.00"
Foreign & Commonwealth Office,Foreign & Commonwealth Office,16-Sep-10,Programme Spend (Oracle Projects Control Account),DG CENTRAL GROUP,BRITISH COUNCIL,1172295,"90,562.50"
Foreign & Commonwealth Office,Foreign & Commonwealth Office,16-Sep-10,IT/IS Consultancy,DG CENTRAL GROUP,FUJITSU SERVICES LIMITED,1172317,"31,573.92"
Foreign & Commonwealth Office,Foreign & Commonwealth Office,16-Sep-10,IT/IS Consultancy,DG CENTRAL GROUP,FUJITSU SERVICES LIMITED,1172317,"20,636.25"
Foreign & Commonwealth Office,Foreign & Commonwealth Office,16-Sep-10,VAT (Input) (Oracle Sub-Ledger Control Account),NON CASH & UNALLOCATED COSTS,FUJITSU SERVICES LIMITED,1172317,"9,136.78"
Foreign & Commonwealth Office,Foreign & Commonwealth Office,16-Sep-10,VAT (Input) (Oracle Sub-Ledger Control Account),NON CASH & UNALLOCATED COSTS,FUJITSU SERVICES LIMITED,1172317,-0.01
Foreign & Commonwealth Office,Foreign & Commonwealth Office,16-Sep-10,IT/IS Consultancy,DG CENTRAL GROUP,FUJITSU SERVICES LIMITED,1172317,"-20,636.25"
Foreign & Commonwealth Office,Foreign & Commonwealth Office,16-Sep-10,IT/IS Consultancy,DG CENTRAL GROUP,FUJITSU SERVICES LIMITED,1172317,"-31,573.92"
Foreign & Commonwealth Office,Foreign & Commonwealth Office,16-Sep-10,VAT (Input) (Oracle Sub-Ledger Control Account),NON CASH & UNALLOCATED COSTS,FUJITSU SERVICES LIMITED,1172317,"-9,136.78"
Foreign & Commonwealth Office,Foreign & Commonwealth Office,16-Sep-10,VAT (Input) (Oracle Sub-Ledger Control Account),NON CASH & UNALLOCATED COSTS,FUJITSU SERVICES LIMITED,1172317,0.01
Foreign & Commonwealth Office,Foreign & Commonwealth Office,16-Sep-10,IT/IS Consultancy,DG CENTRAL GROUP,FUJITSU SERVICES LIMITED,1172317,"31,573.92"
Foreign & Commonwealth Office,Foreign & Commonwealth Office,16-Sep-10,IT/IS Consultancy,DG CENTRAL GROUP,FUJITSU SERVICES LIMITED,1172317,"20,636.25"
Foreign & Commonwealth Office,Foreign & Commonwealth Office,16-Sep-10,VAT (Input) (Oracle Sub-Ledger Control Account),NON CASH & UNALLOCATED COSTS,FUJITSU SERVICES LIMITED,1172317,"9,136.78"
Foreign & Commonwealth Office,Foreign & Commonwealth Office,16-Sep-10,VAT (Input) (Oracle Sub-Ledger Control Account),NON CASH & UNALLOCATED COSTS,FUJITSU SERVICES LIMITED,1172317,-0.01
Foreign & Commonwealth Office,Foreign & Commonwealth Office,16-Sep-10,Rent and Condominium Charges Non-Residential,DG CHANGE & DELIVERY,SAVILLS (L&P) LTD,2000090,"23,310.21"
Foreign & Commonwealth Office,Foreign & Commonwealth Office,16-Sep-10,VAT (Input) (Oracle Sub-Ledger Control Account),NON CASH & UNALLOCATED COSTS,SAVILLS (L&P) LTD,2000090,"4,079.29"
Foreign & Commonwealth Office,Foreign & Commonwealth Office,17-Sep-10,Assets Under Construction (Oracle PA Control Account),NON CASH & UNALLOCATED COSTS,GILBERT-ASH FITOUT LIMITED,1172398,"279,979.37"
Foreign & Commonwealth Office,Foreign & Commonwealth Office,17-Sep-10,Assets Under Construction (Oracle PA Control Account),NON CASH & UNALLOCATED COSTS,GILBERT-ASH FITOUT LIMITED,1172398,"48,996.39"
Foreign & Commonwealth Office,Foreign & Commonwealth Office,17-Sep-10,Home Office Visa Fees: Post Collection-Payment In UK,DG CHANGE & DELIVERY,HOME OFFICE,1172404,550.11
Foreign & Commonwealth Office,Foreign & Commonwealth Office,17-Sep-10,Home Office Visa Fees: Post Collection-Payment In UK,DG CHANGE & DELIVERY,HOME OFFICE,1172404,"1,805.32"
Foreign & Commonwealth Office,Foreign & Commonwealth Office,17-Sep-10,Home Office Visa Fees: Post Collection-Payment In UK,DG CHANGE & DELIVERY,HOME OFFICE,1172404,"13,565.04"
Foreign & Commonwealth Office,Foreign & Commonwealth Office,17-Sep-10,Home Office Visa Fees: Post Collection-Payment In UK,DG CHANGE & DELIVERY,HOME OFFICE,1172404,965
Foreign & Commonwealth Office,Foreign & Commonwealth Office,17-Sep-10,Home Office Visa Fees: Post Collection-Payment In UK,DG CHANGE & DELIVERY,HOME OFFICE,1172404,478.86
Foreign & Commonwealth Office,Foreign & Commonwealth Office,17-Sep-10,Home Office Visa Fees: Post Collection-Payment In UK,DG CHANGE & DELIVERY,HOME OFFICE,1172404,158.77
Foreign & Commonwealth Office,Foreign & Commonwealth Office,17-Sep-10,Home Office Visa Fees: Post Collection-Payment In UK,DG CHANGE & DELIVERY,HOME OFFICE,1172404,"19,265.67"
Foreign & Commonwealth Office,Foreign & Commonwealth Office,17-Sep-10,Home Office Visa Fees: Post Collection-Payment In UK,DG CHANGE & DELIVERY,HOME OFFICE,1172404,"1,899.47"
Foreign & Commonwealth Office,Foreign & Commonwealth Office,17-Sep-10,Home Office Visa Fees: Post Collection-Payment In UK,DG CHANGE & DELIVERY,HOME OFFICE,1172404,"3,718.37"
Foreign & Commonwealth Office,Foreign & Commonwealth Office,17-Sep-10,Home Office Visa Fees: Post Collection-Payment In UK,DG CHANGE & DELIVERY,HOME OFFICE,1172404,"1,433.42"
Foreign & Commonwealth Office,Foreign & Commonwealth Office,17-Sep-10,Home Office Visa Fees: Post Collection-Payment In UK,DG CHANGE & DELIVERY,HOME OFFICE,1172404,"1,020.02"
Foreign & Commonwealth Office,Foreign & Commonwealth Office,17-Sep-10,Home Office Visa Fees: Post Collection-Payment In UK,DG CHANGE & DELIVERY,HOME OFFICE,1172404,"1,145.73"
Foreign & Commonwealth Office,Foreign & Commonwealth Office,17-Sep-10,Home Office Visa Fees: Post Collection-Payment In UK,DG CHANGE & DELIVERY,HOME OFFICE,1172404,"1,410.00"
Foreign & Commonwealth Office,Foreign & Commonwealth Office,17-Sep-10,Home Office Visa Fees: Post Collection-Payment In UK,DG CHANGE & DELIVERY,HOME OFFICE,1172404,"1,779.04"
Foreign & Commonwealth Office,Foreign & Commonwealth Office,17-Sep-10,Home Office Visa Fees: Post Collection-Payment In UK,DG CHANGE & DELIVERY,HOME OFFICE,1172404,470
Foreign & Commonwealth Office,Foreign & Commonwealth Office,17-Sep-10,Home Office Visa Fees: Post Collection-Payment In UK,DG CHANGE & DELIVERY,HOME OFFICE,1172404,"4,230.29"
Foreign & Commonwealth Office,Foreign & Commonwealth Office,17-Sep-10,Home Office Visa Fees: Post Collection-Payment In UK,DG CHANGE & DELIVERY,HOME OFFICE,1172404,416.01
Foreign & Commonwealth Office,Foreign & Commonwealth Office,17-Sep-10,Home Office Visa Fees: Post Collection-Payment In UK,DG CHANGE & DELIVERY,HOME OFFICE,1172404,939.62
Foreign & Commonwealth Office,Foreign & Commonwealth Office,17-Sep-10,Home Office Visa Fees: Post Collection-Payment In UK,DG CHANGE & DELIVERY,HOME OFFICE,1172404,"1,393.34"
Foreign & Commonwealth Office,Foreign & Commonwealth Office,17-Sep-10,Home Office Visa Fees: Post Collection-Payment In UK,DG CHANGE & DELIVERY,HOME OFFICE,1172404,"15,222.06"
Foreign & Commonwealth Office,Foreign & Commonwealth Office,17-Sep-10,Home Office Visa Fees: Post Collection-Payment In UK,DG CHANGE & DELIVERY,HOME OFFICE,1172404,"2,714.54"
Foreign & Commonwealth Office,Foreign & Commonwealth Office,17-Sep-10,Home Office Visa Fees: Post Collection-Payment In UK,DG CHANGE & DELIVERY,HOME OFFICE,1172404,942.1
Foreign & Commonwealth Office,Foreign & Commonwealth Office,20-Sep-10,Rent and Condominium Charges Non-Residential,DG CHANGE & DELIVERY,NATIONAL HOTEL COMPLEX,1002680,"90,291.44"
Foreign & Commonwealth Office,Foreign & Commonwealth Office,20-Sep-10,Rates Taxes Residential,DG CHANGE & DELIVERY,CITY OF WESTMINSTER,1172454,"450,079.68"
Foreign & Commonwealth Office,Foreign & Commonwealth Office,20-Sep-10,General Information Services,DG CHANGE & DELIVERY,WEBER SHANDWICK LTD,1172487,"25,000.00"
Foreign & Commonwealth Office,Foreign & Commonwealth Office,20-Sep-10,VAT (Input) (Oracle Sub-Ledger Control Account),NON CASH & UNALLOCATED COSTS,WEBER SHANDWICK LTD,1172487,"4,375.00"
Foreign & Commonwealth Office,Foreign & Commonwealth Office,21-Sep-10,Programme Spend (Oracle Projects Control Account),DG CENTRAL GROUP,BRITISH COUNCIL,1172506,"569,606.52"
Foreign & Commonwealth Office,Foreign & Commonwealth Office,21-Sep-10,Programme Spend (Oracle Projects Control Account),DG CENTRAL GROUP,BRITISH COUNCIL,1172506,"77,020.98"
Foreign & Commonwealth Office,Foreign & Commonwealth Office,21-Sep-10,Programme Spend (Oracle Projects Control Account),DG CENTRAL GROUP,BRITISH COUNCIL,1172506,"1,701.44"
Foreign & Commonwealth Office,Foreign & Commonwealth Office,21-Sep-10,Programme Spend (Oracle Projects Control Account),DG CENTRAL GROUP,BRITISH COUNCIL,1172506,"24,701.55"
Foreign & Commonwealth Office,Foreign & Commonwealth Office,21-Sep-10,Programme Spend (Oracle Projects Control Account),DG CENTRAL GROUP,BRITISH COUNCIL,1172506,"-24,701.55"
Foreign & Commonwealth Office,Foreign & Commonwealth Office,21-Sep-10,Programme Spend (Oracle Projects Control Account),DG CENTRAL GROUP,BRITISH COUNCIL,1172506,"1,427.88"
Foreign & Commonwealth Office,Foreign & Commonwealth Office,21-Sep-10,Programme Spend (Oracle Projects Control Account),DG CENTRAL GROUP,BRITISH COUNCIL,1172506,"23,273.67"
Foreign & Commonwealth Office,Foreign & Commonwealth Office,21-Sep-10,Rent and Condominium Charges Non-Residential,DG CHANGE & DELIVERY,COLLIERS MEREDITH & GREW / TECHNOLOGY AGENCY ACCT,40000000057,"39,049.54"
Foreign & Commonwealth Office,Foreign & Commonwealth Office,22-Sep-10,Nursery Childcare Subsidy,DG CHANGE & DELIVERY,EDENRED,1172660,"29,533.00"
Foreign & Commonwealth Office,Foreign & Commonwealth Office,22-Sep-10,Nursery Childcare Subsidy,DG CHANGE & DELIVERY,EDENRED,1172660,"1,476.65"
Foreign & Commonwealth Office,Foreign & Commonwealth Office,22-Sep-10,VAT (Input) (Oracle Sub-Ledger Control Account),NON CASH & UNALLOCATED COSTS,EDENRED,1172660,258.41
Foreign & Commonwealth Office,Foreign & Commonwealth Office,22-Sep-10,Electricity Non-Residential,DG CHANGE & DELIVERY,LONDON ENERGY,1172692,"36,255.83"
Foreign & Commonwealth Office,Foreign & Commonwealth Office,22-Sep-10,Electricity Non-Residential,DG CHANGE & DELIVERY,LONDON ENERGY,1172692,"6,344.77"
Foreign & Commonwealth Office,Foreign & Commonwealth Office,22-Sep-10,Electricity Non-Residential,DG CHANGE & DELIVERY,LONDON ENERGY,1172692,"-36,255.83"
Foreign & Commonwealth Office,Foreign & Commonwealth Office,22-Sep-10,Electricity Non-Residential,DG CHANGE & DELIVERY,LONDON ENERGY,1172692,"36,255.83"
Foreign & Commonwealth Office,Foreign & Commonwealth Office,22-Sep-10,Rent and Condominium Charges Non-Residential,DG CHANGE & DELIVERY,SAVILLS (L&P) LTD,1172719,"40,535.37"
Foreign & Commonwealth Office,Foreign & Commonwealth Office,22-Sep-10,VAT (Input) (Oracle Sub-Ledger Control Account),NON CASH & UNALLOCATED COSTS,SAVILLS (L&P) LTD,1172719,"7,093.69"
Foreign & Commonwealth Office,Foreign & Commonwealth Office,22-Sep-10,Recharge Suspense Account (Oracle PA Control Account),NON CASH & UNALLOCATED COSTS,FISCAL CRIME LIAISON OFFICE,300002973,"35,189.58"
Foreign & Commonwealth Office,Foreign & Commonwealth Office,23-Sep-10,Maintenance M and E,DG CHANGE & DELIVERY,INTERSERVE FM LTD,1001948,"2,731.51"
Foreign & Commonwealth Office,Foreign & Commonwealth Office,23-Sep-10,Minor New Works <10K,DG CHANGE & DELIVERY,INTERSERVE FM LTD,1001948,"1,170.64"
Foreign & Commonwealth Office,Foreign & Commonwealth Office,23-Sep-10,Grounds Mainteance,DG CHANGE & DELIVERY,INTERSERVE FM LTD,1001948,515.2
Foreign & Commonwealth Office,Foreign & Commonwealth Office,23-Sep-10,Cleaning,DG CHANGE & DELIVERY,INTERSERVE FM LTD,1001948,"5,185.74"
Foreign & Commonwealth Office,Foreign & Commonwealth Office,23-Sep-10,Cleaning,DG CHANGE & DELIVERY,INTERSERVE FM LTD,1001948,260.23
Foreign & Commonwealth Office,Foreign & Commonwealth Office,23-Sep-10,Miscellaneous Expenditure,DG CHANGE & DELIVERY,INTERSERVE FM LTD,1001948,99.7
Foreign & Commonwealth Office,Foreign & Commonwealth Office,23-Sep-10,Waste Disposal,DG CHANGE & DELIVERY,INTERSERVE FM LTD,1001948,333.65
Foreign & Commonwealth Office,Foreign & Commonwealth Office,23-Sep-10,Reception Services,DG CHANGE & DELIVERY,INTERSERVE FM LTD,1001948,"2,456.81"
Foreign & Commonwealth Office,Foreign & Commonwealth Office,23-Sep-10,Contract Porterage,DG CHANGE & DELIVERY,INTERSERVE FM LTD,1001948,"3,666.67"
Foreign & Commonwealth Office,Foreign & Commonwealth Office,23-Sep-10,Stationery - General,DG CHANGE & DELIVERY,INTERSERVE FM LTD,1001948,614.2
Foreign & Commonwealth Office,Foreign & Commonwealth Office,23-Sep-10,Property and Construction Consultancy,DG CHANGE & DELIVERY,INTERSERVE FM LTD,1001948,"1,508.53"
Foreign & Commonwealth Office,Foreign & Commonwealth Office,23-Sep-10,Rematching / Reinstatement,DG CHANGE & DELIVERY,INTERSERVE FM LTD,1001948,227.97
Foreign & Commonwealth Office,Foreign & Commonwealth Office,23-Sep-10,Contract Fees,DG CHANGE & DELIVERY,INTERSERVE FM LTD,1001948,"1,994.47"
Foreign & Commonwealth Office,Foreign & Commonwealth Office,23-Sep-10,FM Interserve Overseas Reclaimable Tax,DG CHANGE & DELIVERY,INTERSERVE FM LTD,1001948,"4,360.72"
Foreign & Commonwealth Office,Foreign & Commonwealth Office,23-Sep-10,FM Interserve Overseas Reclaimable Tax,DG CHANGE & DELIVERY,INTERSERVE FM LTD,1001948,-0.01
Foreign & Commonwealth Office,Foreign & Commonwealth Office,23-Sep-10,Training Course: Fees,DG CHANGE & DELIVERY,THE TAYLOR CLARKE PARTNERSHIP LTD,1172828,"28,085.00"
Foreign & Commonwealth Office,Foreign & Commonwealth Office,23-Sep-10,Training Course: Fees,DG CHANGE & DELIVERY,THE TAYLOR CLARKE PARTNERSHIP LTD,1172828,451.2
Foreign & Commonwealth Office,Foreign & Commonwealth Office,23-Sep-10,Training Course: Fees,DG CHANGE & DELIVERY,THE TAYLOR CLARKE PARTNERSHIP LTD,1172828,240
Foreign & Commonwealth Office,Foreign & Commonwealth Office,23-Sep-10,Training Course: Fees,DG CHANGE & DELIVERY,THE TAYLOR CLARKE PARTNERSHIP LTD,1172828,"1,511.10"
Foreign & Commonwealth Office,Foreign & Commonwealth Office,23-Sep-10,Training Course: Fees,DG CHANGE & DELIVERY,THE TAYLOR CLARKE PARTNERSHIP LTD,1172828,"7,200.00"
Foreign & Commonwealth Office,Foreign & Commonwealth Office,23-Sep-10,VAT (Input) (Oracle Sub-Ledger Control Account),NON CASH & UNALLOCATED COSTS,THE TAYLOR CLARKE PARTNERSHIP LTD,1172828,"5,300.28"
Foreign & Commonwealth Office,Foreign & Commonwealth Office,23-Sep-10,Training Course: Fees,DG CHANGE & DELIVERY,THE TAYLOR CLARKE PARTNERSHIP LTD,1172828,"-7,200.00"
Foreign & Commonwealth Office,Foreign & Commonwealth Office,23-Sep-10,Training Course: Fees,DG CHANGE & DELIVERY,THE TAYLOR CLARKE PARTNERSHIP LTD,1172828,"7,200.00"
Foreign & Commonwealth Office,Foreign & Commonwealth Office,23-Sep-10,VAT (Input) (Oracle Sub-Ledger Control Account),NON CASH & UNALLOCATED COSTS,THE TAYLOR CLARKE PARTNERSHIP LTD,1172828,"1,260.00"
Foreign & Commonwealth Office,Foreign & Commonwealth Office,24-Sep-10,Programme Spend (Oracle Projects Control Account),DG POLITICAL,UNODC,10131,"135,078.72"
Foreign & Commonwealth Office,Foreign & Commonwealth Office,27-Sep-10,Assets Under Construction (Oracle PA Control Account),NON CASH & UNALLOCATED COSTS,CAPGEMINI  UK PLC,1172907,"27,086.00"
Foreign & Commonwealth Office,Foreign & Commonwealth Office,27-Sep-10,Assets Under Construction (Oracle PA Control Account),NON CASH & UNALLOCATED COSTS,CAPGEMINI  UK PLC,1172907,"4,336.26"
Foreign & Commonwealth Office,Foreign & Commonwealth Office,27-Sep-10,VAT (Input) (Oracle Sub-Ledger Control Account),NON CASH & UNALLOCATED COSTS,CAPGEMINI  UK PLC,1172907,"5,498.90"
Foreign & Commonwealth Office,Foreign & Commonwealth Office,27-Sep-10,Programme Spend (Oracle Projects Control Account),DG POLITICAL,CONCILIATION RESOURCES,1172914,"63,208.00"
Foreign & Commonwealth Office,Foreign & Commonwealth Office,27-Sep-10,Assets Under Construction (Oracle PA Control Account),NON CASH & UNALLOCATED COSTS,HAYS SPECIALIST RECRUITMENT LTD,1172926,"4,032.30"
Foreign & Commonwealth Office,Foreign & Commonwealth Office,27-Sep-10,Assets Under Construction (Oracle PA Control Account),NON CASH & UNALLOCATED COSTS,HAYS SPECIALIST RECRUITMENT LTD,1172926,358.4
Foreign & Commonwealth Office,Foreign & Commonwealth Office,27-Sep-10,Assets Under Construction (Oracle PA Control Account),NON CASH & UNALLOCATED COSTS,HAYS SPECIALIST RECRUITMENT LTD,1172926,"-4,032.30"
Foreign & Commonwealth Office,Foreign & Commonwealth Office,27-Sep-10,Assets Under Construction (Oracle PA Control Account),NON CASH & UNALLOCATED COSTS,HAYS SPECIALIST RECRUITMENT LTD,1172926,-358.4
Foreign & Commonwealth Office,Foreign & Commonwealth Office,27-Sep-10,Assets Under Construction (Oracle PA Control Account),NON CASH & UNALLOCATED COSTS,HAYS SPECIALIST RECRUITMENT LTD,1172926,"4,032.30"
Foreign & Commonwealth Office,Foreign & Commonwealth Office,27-Sep-10,Assets Under Construction (Oracle PA Control Account),NON CASH & UNALLOCATED COSTS,HAYS SPECIALIST RECRUITMENT LTD,1172926,430.08
Foreign & Commonwealth Office,Foreign & Commonwealth Office,27-Sep-10,Assets Under Construction (Oracle PA Control Account),NON CASH & UNALLOCATED COSTS,HAYS SPECIALIST RECRUITMENT LTD,1172926,"30,645.00"
Foreign & Commonwealth Office,Foreign & Commonwealth Office,27-Sep-10,Assets Under Construction (Oracle PA Control Account),NON CASH & UNALLOCATED COSTS,HAYS SPECIALIST RECRUITMENT LTD,1172926,"2,111.10"
Foreign & Commonwealth Office,Foreign & Commonwealth Office,27-Sep-10,VAT (Input) (Oracle Sub-Ledger Control Account),NON CASH & UNALLOCATED COSTS,HAYS SPECIALIST RECRUITMENT LTD,1172926,"5,732.32"
Foreign & Commonwealth Office,Foreign & Commonwealth Office,27-Sep-10,VAT (Input) (Oracle Sub-Ledger Control Account),NON CASH & UNALLOCATED COSTS,HAYS SPECIALIST RECRUITMENT LTD,1172926,780.91
Foreign & Commonwealth Office,Foreign & Commonwealth Office,27-Sep-10,Programme Spend (Oracle Projects Control Account),DG EUROPE AND GLOBALISATION,UNIVERSITY OF OXFORD,1172963,"36,033.00"
Foreign & Commonwealth Office,Foreign & Commonwealth Office,28-Sep-10,General Information Services,DG CHANGE & DELIVERY,BULLET MARKETING LTD,1172980,"26,572.00"
Foreign & Commonwealth Office,Foreign & Commonwealth Office,28-Sep-10,VAT (Input) (Oracle Sub-Ledger Control Account),NON CASH & UNALLOCATED COSTS,BULLET MARKETING LTD,1172980,"4,650.10"
Foreign & Commonwealth Office,Foreign & Commonwealth Office,29-Sep-10,Rent and Condominium Charges Non-Residential,DG CHANGE & DELIVERY,INVESTEC BANK (UK) LTD,1002690,"203,597.23"
Foreign & Commonwealth Office,Foreign & Commonwealth Office,29-Sep-10,Rent and Condominium Charges Non-Residential,DG CHANGE & DELIVERY,INVESTEC BANK (UK) LTD,1002690,10.37
Foreign & Commonwealth Office,Foreign & Commonwealth Office,29-Sep-10,Assets Under Construction (Oracle PA Control Account),NON CASH & UNALLOCATED COSTS,HEWLETT-PACKARD LTD,1173137,"202,287.05"
Foreign & Commonwealth Office,Foreign & Commonwealth Office,29-Sep-10,Assets Under Construction (Oracle PA Control Account),NON CASH & UNALLOCATED COSTS,HEWLETT-PACKARD LTD,1173137,"35,400.23"
Foreign & Commonwealth Office,Foreign & Commonwealth Office,29-Sep-10,Training Course: Fees,DG CHANGE & DELIVERY,RADA ENTERPRISES LIMITED,1173159,84
Foreign & Commonwealth Office,Foreign & Commonwealth Office,29-Sep-10,Training Course: Fees,DG CHANGE & DELIVERY,RADA ENTERPRISES LIMITED,1173159,276
Foreign & Commonwealth Office,Foreign & Commonwealth Office,29-Sep-10,Training Course: Fees,DG CHANGE & DELIVERY,RADA ENTERPRISES LIMITED,1173159,14
Foreign & Commonwealth Office,Foreign & Commonwealth Office,29-Sep-10,Training Course: Fees,DG CHANGE & DELIVERY,RADA ENTERPRISES LIMITED,1173159,"23,420.00"
Foreign & Commonwealth Office,Foreign & Commonwealth Office,29-Sep-10,Training Course: Fees,DG CHANGE & DELIVERY,RADA ENTERPRISES LIMITED,1173159,540
Foreign & Commonwealth Office,Foreign & Commonwealth Office,29-Sep-10,Training Course: Fees,DG CHANGE & DELIVERY,RADA ENTERPRISES LIMITED,1173159,"1,080.00"
Foreign & Commonwealth Office,Foreign & Commonwealth Office,29-Sep-10,VAT (Input) (Oracle Sub-Ledger Control Account),NON CASH & UNALLOCATED COSTS,RADA ENTERPRISES LIMITED,1173159,"4,447.45"
Foreign & Commonwealth Office,Foreign & Commonwealth Office,29-Sep-10,Programme Spend (Oracle Projects Control Account),DG EUROPE AND GLOBALISATION,UNIVERSITY OF CAMBRIDGE,1173180,"55,669.00"
Foreign & Commonwealth Office,Foreign & Commonwealth Office,29-Sep-10,Wdhs/Wsds,DG CHANGE & DELIVERY,BUYING SOLUTIONS,3000222,"110,178.72"
Foreign & Commonwealth Office,Foreign & Commonwealth Office,29-Sep-10,Wdhs/Wsds,DG CHANGE & DELIVERY,BUYING SOLUTIONS,3000222,"19,281.28"
Foreign & Commonwealth Office,Foreign & Commonwealth Office,29-Sep-10,CFER Payments to The Exchequer,NON CASH & UNALLOCATED COSTS,H M EXCHEQUER,4007029,"1,795,299.26"
Foreign & Commonwealth Office,Foreign & Commonwealth Office,29-Sep-10,Recharge Suspense Account (Oracle PA Control Account),NON CASH & UNALLOCATED COSTS,DFID DEPARTMENT FOR INTERNATIONAL DEVELOPMENT,2000000896,"37,479.81"
Foreign & Commonwealth Office,Foreign & Commonwealth Office,29-Sep-10,Recharge Suspense Account (Oracle PA Control Account),NON CASH & UNALLOCATED COSTS,IFES,2000000897,"48,465.27"
Foreign & Commonwealth Office,Foreign & Commonwealth Office,30-Sep-10,Other It (Maint),DG CENTRAL GROUP,HEWLETT-PACKARD LTD,1000116,"97,052.00"
Foreign & Commonwealth Office,Foreign & Commonwealth Office,30-Sep-10,VAT (Input) (Oracle Sub-Ledger Control Account),NON CASH & UNALLOCATED COSTS,HEWLETT-PACKARD LTD,1000116,"16,984.10"
Foreign & Commonwealth Office,Foreign & Commonwealth Office,30-Sep-10,Information Systems Under Â£3000,DG CENTRAL GROUP,HEWLETT-PACKARD LTD,1000117,"130,000.70"
Foreign & Commonwealth Office,Foreign & Commonwealth Office,30-Sep-10,IT/IS Consultancy,DG CENTRAL GROUP,HEWLETT-PACKARD LTD,1000117,"25,465.00"
Foreign & Commonwealth Office,Foreign & Commonwealth Office,30-Sep-10,VAT (Input) (Oracle Sub-Ledger Control Account),NON CASH & UNALLOCATED COSTS,HEWLETT-PACKARD LTD,1000117,"27,206.50"
Foreign & Commonwealth Office,Foreign & Commonwealth Office,30-Sep-10,Training Course: Fees,DG CHANGE & DELIVERY,THE TAYLOR CLARKE PARTNERSHIP LTD,1000181,"25,685.00"
Foreign & Commonwealth Office,Foreign & Commonwealth Office,30-Sep-10,Training Course: Fees,DG CHANGE & DELIVERY,THE TAYLOR CLARKE PARTNERSHIP LTD,1000181,451.2
Foreign & Commonwealth Office,Foreign & Commonwealth Office,30-Sep-10,Training Course: Fees,DG CHANGE & DELIVERY,THE TAYLOR CLARKE PARTNERSHIP LTD,1000181,240
Foreign & Commonwealth Office,Foreign & Commonwealth Office,30-Sep-10,VAT (Input) (Oracle Sub-Ledger Control Account),NON CASH & UNALLOCATED COSTS,THE TAYLOR CLARKE PARTNERSHIP LTD,1000181,"4,615.84"
Foreign & Commonwealth Office,Foreign & Commonwealth Office,30-Sep-10,Other It (Maint),DG CENTRAL GROUP,HEWLETT-PACKARD LTD,1173227,"97,052.00"
Foreign & Commonwealth Office,Foreign & Commonwealth Office,30-Sep-10,VAT (Input) (Oracle Sub-Ledger Control Account),NON CASH & UNALLOCATED COSTS,HEWLETT-PACKARD LTD,1173227,"16,984.10"
Foreign & Commonwealth Office,Foreign & Commonwealth Office,30-Sep-10,Information Systems Under Â£3000,DG CENTRAL GROUP,HEWLETT-PACKARD LTD,1173228,"130,000.70"
Foreign & Commonwealth Office,Foreign & Commonwealth Office,30-Sep-10,IT/IS Consultancy,DG CENTRAL GROUP,HEWLETT-PACKARD LTD,1173228,"25,465.00"
Foreign & Commonwealth Office,Foreign & Commonwealth Office,30-Sep-10,VAT (Input) (Oracle Sub-Ledger Control Account),NON CASH & UNALLOCATED COSTS,HEWLETT-PACKARD LTD,1173228,"27,206.50"
Foreign & Commonwealth Office,Foreign & Commonwealth Office,30-Sep-10,Training Course: Fees,DG CHANGE & DELIVERY,THE TAYLOR CLARKE PARTNERSHIP LTD,1173286,"25,685.00"
Foreign & Commonwealth Office,Foreign & Commonwealth Office,30-Sep-10,Training Course: Fees,DG CHANGE & DELIVERY,THE TAYLOR CLARKE PARTNERSHIP LTD,1173286,451.2
Foreign & Commonwealth Office,Foreign & Commonwealth Office,30-Sep-10,Training Course: Fees,DG CHANGE & DELIVERY,THE TAYLOR CLARKE PARTNERSHIP LTD,1173286,240
Foreign & Commonwealth Office,Foreign & Commonwealth Office,30-Sep-10,VAT (Input) (Oracle Sub-Ledger Control Account),NON CASH & UNALLOCATED COSTS,THE TAYLOR CLARKE PARTNERSHIP LTD,1173286,"4,615.84"
